{"text_format":"1","workbook":"xlsx","n_sheets":3,"sheets":["Instructions","Form","For your comments"],"not_rendered":{"charts":0,"images":0,"macros":1,"external_links":2,"defined_names":7,"comments":1,"pivot_tables":0},"unopened":[],"bounds":{"document_bytes":16777216,"sheet_cells":100000,"rows_first":2000,"rows_last":500,"rows_between":2000,"halvings":0,"cell_chars":16384,"cell_head_chars":4096},"cells_cut":0,"cells_raw":0,"read":"whole","date_system":"1900"}

{"sheet":"Instructions","index":0,"n_rows":43,"n_cols":4,"rows_kept":43,"cut":false,"hidden":false,"merged":[]}
["Instructions"]
[null,"Check that the person you are putting forward is suitably qualified. e.g. If coordinating a unit they should have completed a degree above."]
[]
["Email this to D/HoS on completion. You will be informed when approved"]
[null,"If you don't receive approval notification in a few days, please resend as it may have gone missing or been missed somehow."]
[null,"Any required admin or contracts will then be organised by the school office without you being required to take any further action."]
[null,"The rates paid are based on the EB. Please ensure that these are adhered to. Casuals will be paid for all hours worked."]
[]
["Only change the yellow highlighted cells.",null,null,"The greyed cells should not be touched - they contain formula."]
[]
["Complete student numbers. ",null,"In the first instance please use the projected EFTSL i.e. from your workloads summary sent to you for this year. "]
[null,"However, you may use the official current enrolments (see link below) if these are already higher than the EFTSL shown in your workloads summary."]
[null,"In this case, please use the greater of the EFTSL from your workloads summary or current official enrolment figures (see below link)"]
[null,null,"The numbers are calculate as EFTSL X 8 (1 student is 0.125 of an EFTSL)"]
[null,"Please do not enter your own projections without the D/HoS express approval. "]
[null,"In the end, casuals are paid based on the actual student numbers, so you do not need to take steps to check this, other than when it affects the number of tutes."]
[]
["Complete the number of allocated hours/sessions for the tasks in the left columns"]
[null,"Complete the number of  hours assigned to other staff or casual staff for the tasks allocated to them in the right columns"]
[null," Typically the number of weeks and hours should be based on the work required in the unit specifically."]
[null,"If a person is the co-ordinator of the unit, typically their responsibilities will continue before and after the semester, "]
[null,null,"please allow for this in the number of weeks e.g. 12 weeks plus 3 weeks."]
[]
["Ensure that the \"Check\" cell is showing 100%. This is a check to ensure that it all adds up."]
[]
["Check that all information is provided e.g. \"Unit No.\" & \"Trimester: \"  etc."]
[]
["Please justify/explain anything unusual in the comments tab"]
[]
["Send to D/HoS (or equivalent) for approval."]
[null,"Rename form to that of the unit i.e. XYZ100.xlsx"]
[null,"if you have any suggestions in relation to this form, please contact Ian Beissel"]
[]
["If you wish to get current Unit enrolments, click on the following"]
["http://planning.une.edu.au/UNE/Statistics/current/early_unit.xlsx"]
[]
[]
[]
[]
["Click on this link to access the UNE web-site data"]
[null,"(Click \"OK\" to the question: \"Would you like to open this file\")"]
[null,"Save file"]
[null,"In the dropdown School_Name select UNEBS (or School of Law)"]

{"sheet":"Form","index":1,"n_rows":726,"n_cols":24,"rows_kept":726,"cut":false,"hidden":false,"merged":[[31,1,31,2],[20,1,20,2],[21,1,21,2],[22,1,22,2],[23,1,23,2],[24,1,24,2],[30,1,30,2],[27,0,27,2],[8,1,8,4],[8,6,8,7],[8,8,8,9],[11,7,11,10],[18,3,19,3],[19,1,19,2],[3,1,3,2],[3,12,6,13],[5,1,5,4],[7,1,7,4],[7,6,7,7],[7,8,7,9]]}
[null,null,"      Please complete the yellow & orange highlighted areas where appropriate",null,null,null,null,null,null,"Send to D/HoS (or equivalent) on completion"]
["Casual Assistance Request Form 2020",null,null,"NOTE: Please \"ENABLE CONTENT\" if prompted, otherwise the functionality of this form may be compromised",null,null,null,null,null,null,null,null,null,null,null,null,null,null,null,null,null,"AFM 101","Intro to Financial Accounting","TRI-1"]
[null,null,null,null,null,null,null,null,null,null,null,"Probable Student Numbers",null,null,null,null,null,null,null,null,null,"AFM 102","Principles of Cost Management","TRI-2"]
["Unit Code = ",null,null,null,{"$f":"IF(B4=\"\",\"\",VLOOKUP(B4,$V$2:$W$1241,2,FALSE))","v":""},null,null,"Trimester:  ",null,null,"Internal",null,"Please use the greater of EFTSL from workload or official enrolment figures",null,null,null,null,null,null,null,null,"AFM 112","Intro to Management Accounting","TRI-3"]
[null,null,null,null,null,null,null,null,null,null,"External",null,null,null,null,null,null,null,null,null,null,"AFM 202","Cost Management","YR-LONG"]
["Unit Coordinator's Name = ",null,null,null,null,null,"Co-ordinator's status:",null,null,null,"Total",{"$f":"SUM(L4:L5)","v":0},null,null,null,null,null,null,null,null,null,"AFM 211","Intermediate Financial Accounting"]
[null,null,null,null,null,null,null,null,null,null,null,null,null,null,null,null,null,null,null,null,null,"AFM 211","Intermediate Financial Accounting"]
["Staff member 2 (NAME)",null,null,null,null,null,"Casual 2 (NAME)",null,null,null,null,null,null,null,null,null,null,null,null,null,null,"AFM 217","Financial Management I"]
["Casual 1 (NAME)",null,null,null,null,null,"Casual 3 (NAME)",null,null,null,null,null,null,null,null,null,null,null,null,null,null,"AFM 217","Financial Management I"]
[null,null,null,null,null,null,null,null,null,null,null,null,null,null,null,null,null,null,null,null,null,"AFM 219","Financial Management II"]
[null,null,null,null,"ALLOCATION OF TASKS",null,null,null,null,null,null,null,null,null,null,null,null,null,null,null,null,"AFM 219","Financial Management II"]
["Activities",null,null,null,null,null,{"$f":"IF(B6=\"\",\"\",B6)","v":""},"Please enter requested hours below",null,null,null,null,null,null,null,null,null,null,null,null,null,"AFM 231","Corporate Finance","Permanent"]
[null,null,null,"Hours","Hours","Code","Unit coordinator",{"$f":"IF(B8=\"\",\"Staff member 2\",B8)","v":"Staff member 2"},{"$f":"IF(B9=\"\",\"Casual 1\",B9)","v":"Casual 1"},{"$f":"IF(I8=\"\",IF(COLUMN(I13)=8,\"Casual 1\",IF(COLUMN(I13)=9,\"Casual 2\",IF(COLUMN(I13)=10,\"Casual 3\",IF(COLUMN(I13)=11,\"Casual 4\",IF(COLUMN(I13)=12,\"Casual 5\",\"..\"))))),I8)","v":"Casual 2"},{"$f":"IF(I9=\"\",IF(COLUMN(I13)=7,\"Casual 1\",IF(COLUMN(I13)=8,\"Casual 2\",IF(COLUMN(I13)=9,\"Casual 3\",IF(COLUMN(I13)=10,\"Casual 4\",IF(COLUMN(I13)=11,\"Casual 5\",\"..\"))))),I9)","v":"Casual 3"},null,null,null,null,null,null,null,null,null,null,"AFM 231","Corporate Finance","Casual"]
["Unit Teaching - Fixed Preparation Tasks",null,null,null,null,null,null,null,null,null,null,null,null,null,null,null,null,null,null,null,null,"AFM 231","Corporate Finance"]
["Includes: updating unit materials; setting",null,null,null,null,null,"Hours","Hours","Hours","Hours","Hours",null,null,null,null,null,null,null,null,null,null,"AFM 232","Financial Instruments & Markets"]
["assignments & exam, preparation of marking guides ",null,null,{"$f":"IF(H6=\"Permanent\",75,\"\")","v":""},{"$f":"IF(D16=\"\",\"0.0\",ROUND(D16,1))","v":"0.0"},"OA",{"$f":"IF(D16=\"\",\"0.0\",ROUND(E16-SUM(H16:K16),1))","v":"0.0"},null,null,null,null,null,null,null,null,null,null,null,null,null,null,"AFM 242","Financial Instruments and Markets "]
["    Additional time required for teaching preparation",null,null,null,{"$f":"ROUND(D17,1)","v":0},"OA",{"$f":"IF(D17=\"\",\"0.0\",ROUND(E17-SUM(H17:K17),1))","v":"0.0"},null,null,null,null,null,null,null,null,null,null,null,null,null,null,null,null,"no"]
[{"$f":"IF(D17=\"\",\"\",\"(submit a separate statement justifying the additional time)\")","v":""},null,null,null,null,null,null,null,null,null,null,null,null,null,null,null,null,null,null,null,null,null,null,"yes"]
[null,null,null,"No. per week",null,null,null,null,null,null,null,null,null,null,null,null,null,null,null,null,null,"AFM 311","Advanced Financial Accounting"]
["Delivery of Lectures & Tutorials","No. of Weeks",null,null,"Sessions",null,"Sessions","Sessions","Sessions","Sessions","Sessions",null,null,null,null,null,null,null,null,null,null,"AFM 312","Auditing"]
["Lectures (includes preparation & delivery)",{"$f":"IF(I$4=\"TRI-3\",11,11)","v":11},null,null,{"$f":"ROUND(B21*D21,1)","v":0},"CL",{"$f":"ROUND(E21-SUM(H21:K21),1)","v":0},null,null,null,null,null,null,null,null,null,null,null,null,null,null,"AFM 314","International Accounting"]
["Tutorials - initial",{"$f":"IF(I$4=\"TRI-3\",10,10)","v":10},null,null,{"$f":"ROUND(B22*D22,1)","v":0},"CT",{"$f":"ROUND(E22-SUM(H22:K22),1)","v":0},null,null,null,null,null,null,null,null,null,null,null,null,null,null,"AFM 316","Issues in Management Accounting"]
["Tutorials - repeat",{"$f":"IF(I$4=\"TRI-3\",10,10)","v":10},null,null,{"$f":"ROUND(B23*D23,1)","v":0},"CT",{"$f":"ROUND(E23-SUM(H23:K23),1)","v":0},null,null,null,null,null,null,null,null,null,null,null,null,null,null,"AFM 319","Auditing"]
["Workshop",{"$f":"IF(I$4=\"TRI-3\",10,10)","v":10},null,null,{"$f":"ROUND(B24*D24,1)","v":0},"CT",{"$f":"ROUND(E24-SUM(H24:K24),1)","v":0},null,null,null,null,null,null,null,null,null,null,null,null,null,null,"AFM 319","Auditing"]
["Other related activity",{"$f":"IF(I$4=\"TRI-3\",10,10)","v":10},null,null,{"$f":"ROUND(B25*D25,1)","v":0},"CT",{"$f":"ROUND(E25-SUM(H25:K25),1)","v":0},null,null,null,null,null,null,null,null,null,null,null,null,null,null,"AFM 322","Small Business Finance"]
[null,null,null,null,null,null,null,null,null,null,null,null,null,null,null,null,null,null,null,null,null,"AFM 304","Financial Statement Analysis"]
["Face-to-face Consultation with Students",null,null,"Av min./student",null,null,"Hours","Hours","Hours","Hours","Hours",null,null,null,null,null,null,null,null,null,null,"AFM 305","Advanced Financial Accounting "]
["Interaction with internal students (usually 10 min./student)",null,null,null,{"$f":"ROUND(IF(D28=0,0,(L4*D28)/60),1)","v":0},"OA",{"$f":"ROUND(E28-SUM(H28:K28),1)","v":0},null,null,null,null,null,null,null,null,null,null,null,null,null,null,"AFM 305","Advanced Financial Accounting "]
["Other related activity (total number of hours over trimester)",null,null,null,{"$f":"ROUND(D29,1)","v":0},"OA",{"$f":"ROUND(E29-SUM(H29:K29),1)","v":0},null,null,null,null,null,null,null,null,null,null,null,null,null,null,"AFM 306","Issues in Management Accounting"]
[null,null,null,null,null,null,null,null,null,null,null,null,null,null,null,null,null,null,null,null,null,"AFM 322","Small Business Finance"]
["Online Interactions",null,null,null,"Hours",null,"Hours","Hours","Hours","Hours","Hours",null,null,null,null,null,null,null,null,null,null,"AFM 332","Security Analysis & Portfolio Mngmt"]
["Interactions with students via Moodle",null,null,null,{"$f":"IF(L6=0,0,(IF(AND(L6>0,L6<5),3.5,(IF(AND(L6>4,L6<18),-14.5+(4.25*L6)+(-0.13*L6*L6),(IF(AND(L6>17,L6<49),-1.821+(1.8695*L6)+(-0.03086*L6*L6)+(0.000217*L6*L6*L6),(IF(AND(L6>48,L6<159),13.79+(0.719*L6)+(-0.003389*L6*L6)+(0.00000636174*L6*L6*L6),40.1447+(0.2674*L6)+(-0.00063*L6*L6)+(0.0000004548*L6*L6*L6))))))))))","v":0},"OA",{"$f":"ROUND(E32-SUM(H32:K32),1)","v":0},null,null,null,null,null,null,null,null,null,null,null,null,null,null,"AFM 334","Bank Financial Management"]
[null,null,null,null,null,null,null,null,null,null,null,null,null,null,null,null,null,null,null,null,null,"AFM 335","International Financial Management"]
["Intensive School",null,"Days","hrs/day",null,null,"Sessions","Sessions","Sessions","Sessions","Sessions",null,null,null,null,null,null,null,null,null,null,"AFM 336","Credit Analysis and Management"]
["Intensive School Lectures (incl. prep & delivery)",null,null,null,{"$f":"ROUND(C35*D35,1)","v":0},"CL",{"$f":"ROUND(E35-SUM(H35:K35),1)","v":0},null,null,null,null,null,null,null,null,null,null,null,null,null,null,"AFM 340","Fraud Prevention & Investigation"]
["Other related activity (number of hours)",null,null,null,{"$f":"ROUND(D36,1)","v":0},"OA",{"$f":"ROUND(E36-SUM(H36:K36),1)","v":0},null,null,null,null,null,null,null,null,null,null,null,null,null,null,"AFM 372","Management Information Systems"]
[null,null,null,null,null,null,null,null,null,null,null,null,null,null,null,null,null,null,null,null,null,"AFM 401","Accounting Theory"]
["Assignments (change to 'yes' if applicable to this unit)",null,null,null,"Hours",null,"Hours","Hours","Hours","Hours","Hours",null,null,null,null,null,null,null,null,null,null,"AFM 402","Accounting & Finance for Managers"]
["Assignment 1 - moderate, collate",null,null,"no",{"$f":"ROUND(IF(D39=\"yes\",($L$6*5/60),0),1)","v":0},"OA",{"$f":"ROUND(E39-SUM(H39:K39),1)","v":0},null,null,null,null,null,null,null,null,null,null,null,null,null,null,"AFM 403","Management Accounting "]
["Assignment 2 - moderate, collate",null,null,"no",{"$f":"ROUND(IF(D40=\"yes\",($L$6*5/60),0),1)","v":0},"OA",{"$f":"ROUND(E40-SUM(H40:K40),1)","v":0},null,null,null,null,null,null,null,null,null,null,null,null,null,null,"AFM 403","Management Accounting"]
["Assignment 3 - moderate, collate",null,null,"no",{"$f":"ROUND(IF(D41=\"yes\",($L$6*5/60),0),1)","v":0},"OA",{"$f":"ROUND(E41-SUM(H41:K41),1)","v":0},null,null,null,null,null,null,null,null,null,null,null,null,null,null,"AFM 406","Introductory Accounting"]
[null,null,null,"Minutes / student",null,null,null,null,null,null,null,null,null,null,null,null,null,null,null,null,null,"AFM 406","Introductory Accounting"]
["Marking (Assignment 1)",null,null,null,{"$f":"ROUND(IF(D39=\"no\",0,$L$6*D43/60),1)","v":0},"CM",{"$f":"ROUND(E43-SUM(H43:K43),1)","v":0},null,null,null,null,null,null,null,null,null,null,null,null,null,null,"AFM 410","Intermediate Financial Accounting"]
["Marking (Assignment 2)",null,null,null,{"$f":"ROUND(IF(D40=\"no\",0,$L$6*D44/60),1)","v":0},"CM",{"$f":"ROUND(E44-SUM(H44:K44),1)","v":0},null,null,null,null,null,null,null,null,null,null,null,null,null,null,"AFM 412","Auditing"]
["Marking (Assignment 3)  ",null,null,null,{"$f":"ROUND(IF(D41=\"no\",0,$L$6*D45/60),1)","v":0},"CM",{"$f":"ROUND(E45-SUM(H45:K45),1)","v":0},null,null,null,null,null,null,null,null,null,null,null,null,null,null,"AFM 415","International Accounting"]
["Other Marking ",null,null,null,{"$f":"ROUND($L$6*D46/60,1)","v":0},"CM",{"$f":"ROUND(E46-SUM(H46:K46),1)","v":0},null,null,null,null,null,null,null,null,null,null,null,null,null,null,"AFM 416","Issues in Management Accounting"]
[null,null,null,null,"Hours",null,null,null,null,null,null,null,null,null,null,null,null,null,null,null,null,"AFM 417","Advanced Financial Accounting"]
["Exam and Final Grades",null,null,"Minutes / student",null,null,"Hours","Hours","Hours","Hours","Hours",null,null,null,null,null,null,null,null,null,null,"AFM 422 ","Small Business Finance"]
["Moderate & collate results, submit final grades",null,null,null,{"$f":"ROUND($L$6*D49/60,1)","v":0},"OA",{"$f":"ROUND(E49-SUM(H49:K49),1)","v":0},null,null,null,null,null,null,null,null,null,null,null,null,null,null,"AFM 431","Financial Statement Analysis"]
[null,null,null,"Minutes / student",null,null,null,null,null,null,null,null,null,null,null,null,null,null,null,null,null,"AFM 432","Security Analysis & Portfolio Mngmt"]
["Marking  exam ",null,null,null,{"$f":"ROUND(L6*D51/60,1)","v":0},"CM",{"$f":"ROUND(E51-SUM(H51:K51),1)","v":0},null,null,null,null,null,null,null,null,null,null,null,null,null,null,"AFM 440","Fraud Examination"]
["Total. This is only a guide to the amounts that casuals may claim. ",null,null,null,"Hours","OA",{"$f":"SUM(G16:G17)+SUM(G36)+SUM(G39:G41)+SUM(G49:G49)+SUM(G28:G29)+G32","v":0},{"$f":"SUM(H16:H17)+SUM(H36)+SUM(H39:H41)+SUM(H49:H49)+SUM(H28:H29)+H32","v":0},{"$f":"SUM(I16:I17)+SUM(I36)+SUM(I39:I41)+SUM(I49:I49)+SUM(I28:I29)+I32","v":0},{"$f":"SUM(J16:J17)+SUM(J36)+SUM(J39:J41)+SUM(J49:J49)+SUM(J28:J29)+J32","v":0},{"$f":"SUM(K16:K17)+SUM(K36)+SUM(K39:K41)+SUM(K49:K49)+SUM(K28:K29)+K32","v":0},null,null,null,null,null,null,null,null,null,null,"AFM 442","Financial Instruments and Markets "]
["   If circumstances change the contract may also change.",null,null,null,"Hours","CM",{"$f":"SUM(G43:G46)+G51","v":0},{"$f":"SUM(H43:H46)+H51","v":0},{"$f":"SUM(I43:I46)+I51","v":0},{"$f":"SUM(J43:J46)+J51","v":0},{"$f":"SUM(K43:K46)+K51","v":0},null,null,null,null,null,null,null,null,null,null,"AFM 466","Risk Management and Insurance"]
["   For example, if student numbers change, so may casual ",null,null,null,"Sessions","CL",{"$f":"G21+G35","v":0},{"$f":"H21+H35","v":0},{"$f":"I21+I35","v":0},{"$f":"J21+J35","v":0},{"$f":"K21+K35","v":0},null,null,null,null,null,null,null,null,null,null,"AFM 467","Superannuation and Retirement"]
["   staff’s workload.",null,null,null,"Sessions","CT",{"$f":"SUM(G22:G25)","v":0},{"$f":"SUM(H22:H25)","v":0},{"$f":"SUM(I22:I25)","v":0},{"$f":"SUM(J22:J25)","v":0},{"$f":"SUM(K22:K25)","v":0},"Check",null,null,null,null,null,null,null,null,null,"AFM 468","Investment Management in Financial Planning"]
["For admin purposes only",null,null,"Hours for admin purposes",{"$f":"(SUM(E16:E17)+SUM(E28:E29)+E32+E36+SUM(E39:E41)+E49)+(SUM(E43:E46)+E51)+((E21+E35)*3)+((SUM(E23:E25))*2)+((E22)*3)","v":0},null,{"$f":"SUM(G52:G53)+(G54*3)+((SUM(G23:G25))*2)+((G22)*3)","v":0},{"$f":"SUM(H52:H53)+(H54*3)+((SUM(H23:H25))*2)+((H22)*3)","v":0},{"$f":"SUM(I52:I53)+(I54*3)+((SUM(I23:I25))*2)+((I22)*3)","v":0},{"$f":"SUM(J52:J53)+(J54*3)+((SUM(J23:J25))*2)+((J22)*3)","v":0},{"$f":"SUM(K52:K53)+(K54*3)+((SUM(K23:K25))*2)+((K22)*3)","v":0},{"$f":"SUM(G56:K56)","v":0},null,null,null,null,null,null,null,null,null,"AFM 501","Accounting Theory & Research"]
[null,null,null,"Proportion of EFTSL",null,null,{"$f":"IF(E56=0,0,G56/E56)","v":0},{"$f":"IF(E56=0,0,H56/$E$56)","v":0},{"$f":"IF(E56=0,0,I56/$E$56)","v":0},{"$f":"IF(E56=0,0,J56/$E$56)","v":0},{"$f":"IF(E56=0,0,K56/$E$56)","v":0},{"$f":"SUM(G57:K57)","v":0},null,null,null,null,null,null,null,null,null,"AFM 501","Accounting Theory & Research"]
["Actual EFTSL",null,null,null,{"$f":"ROUND(L6/8,2)","v":0},null,null,null,null,null,null,null,null,null,null,null,null,null,null,null,null,"AFM 504","Financial Statement Analysis"]
["EFTSL Allocated per staff member",null,null,null,null,null,{"$f":"E58*G57","v":0},{"$f":"$E$58*H57","v":0},{"$f":"$E$58*I57","v":0},{"$f":"$E$58*J57","v":0},{"$f":"$E$58*K57","v":0},{"$f":"SUM(G59:K59)","v":0},null,null,null,null,null,null,null,null,null,"AFM 505","Advanced Financial Accounting "]
["HOURS PER EFTSL",null,null,null,{"$f":"IF(E58=0,0,E56/E58)","v":0},null,null,null,null,null,null,null,null,null,null,null,null,null,null,null,null,"AFM 506","Issues in Management Accounting"]
[null,null,null,null,null,null,null,null,null,null,null,null,null,null,null,null,null,null,null,null,null,"AFM 519","Auditing"]
[null,null,null,null,null,null,null,null,null,null,null,null,null,null,null,null,null,null,null,null,null,"AFM 519","Auditing"]
[null,null,null,null,null,null,null,null,null,null,null,null,null,null,null,null,null,null,null,null,null,"AFM 522","Small Business Finance"]
[null,null,null,null,null,null,null,null,null,null,null,null,null,null,null,null,null,null,null,null,null,"AFM 522","Small Business Finance"]
[null,null,null,null,null,null,null,null,null,null,null,null,null,null,null,null,null,null,null,null,null,"AFM 524","Entrepreneurship"]
[null,null,null,null,null,null,null,null,null,null,null,null,null,null,null,null,null,null,null,null,null,"AFM 524","Entrepreneurship"]
[null,null,null,null,null,null,null,null,null,null,null,null,null,null,null,null,null,null,null,null,null,"AFM 527","Issues in Management Accounting"]
[null,null,null,null,null,null,null,null,null,null,null,null,null,null,null,null,null,null,null,null,null,"AFM 531","Managerial Finance"]
[null,null,null,null,null,null,null,null,null,null,null,null,null,null,null,null,null,null,null,null,null,"AFM 532","Security Analysis & Portfolio Mngmt"]
[null,null,null,null,null,null,null,null,null,null,null,null,null,null,null,null,null,null,null,null,null,"AFM 540","Fraud Prevention & Investigation"]
[null,null,null,null,null,null,null,null,null,null,null,null,null,null,null,null,null,null,null,null,null,"AFM 541","Advanced Financial Accounting"]
[null,null,null,null,null,null,null,null,null,null,null,null,null,null,null,null,null,null,null,null,null,"AFM 541","Advanced Financial Accounting"]
[null,null,null,null,null,null,null,null,null,null,null,null,null,null,null,null,null,null,null,null,null,"AFM 564","Issues in Auditing & Prof Practice"]
[null,null,null,null,null,null,null,null,null,null,null,null,null,null,null,null,null,null,null,null,null,"AFM 565","Financial Planning & Wealth Management"]
[null,null,null,null,null,null,null,null,null,null,null,null,null,null,null,null,null,null,null,null,null,"AFM 566","Risk Management & Insurance"]
[null,null,null,null,null,null,null,null,null,null,null,null,null,null,null,null,null,null,null,null,null,"AFM 567","Superannuation & Retirement"]
[null,null,null,null,null,null,null,null,null,null,null,null,null,null,null,null,null,null,null,null,null,"AFM 568","Investment Management in Financial Planning"]
[null,null,null,null,null,null,null,null,null,null,null,null,null,null,null,null,null,null,null,null,null,"AFM 569","Developing the Financial Plan"]
[null,null,null,null,null,null,null,null,null,null,null,null,null,null,null,null,null,null,null,null,null,"AFM 569","Developing the Financial Plan"]
[null,null,null,null,null,null,null,null,null,null,null,null,null,null,null,null,null,null,null,null,null,"AGRO 100","Agriculture in Practice"]
[null,null,null,null,null,null,null,null,null,null,null,null,null,null,null,null,null,null,null,null,null,"ANPR 350","Commercial Mngmt Sheep Enterprise"]
[null,null,null,null,null,null,null,null,null,null,null,null,null,null,null,null,null,null,null,null,null,"ANPR 450","Commercial Mngmt Sheep Enterprise"]
[null,null,null,null,null,null,null,null,null,null,null,null,null,null,null,null,null,null,null,null,null,"ANPR 460","Beef Production"]
[null,null,null,null,null,null,null,null,null,null,null,null,null,null,null,null,null,null,null,null,null,"COMP 504","Management Information Systems"]
[null,null,null,null,null,null,null,null,null,null,null,null,null,null,null,null,null,null,null,null,null,"ECON 101","Introductory Microeconomics"]
[null,null,null,null,null,null,null,null,null,null,null,null,null,null,null,null,null,null,null,null,null,"ECON 102","Introductory Macroeconomics"]
[null,null,null,null,null,null,null,null,null,null,null,null,null,null,null,null,null,null,null,null,null,"ECON 121","Environ & Food: Econ Perspectives"]
[null,null,null,null,null,null,null,null,null,null,null,null,null,null,null,null,null,null,null,null,null,"ECON 143","Austn Econ Institutions & Perform"]
[null,null,null,null,null,null,null,null,null,null,null,null,null,null,null,null,null,null,null,null,null,"ECON 143","Austn Econ Institutions & Perform"]
[null,null,null,null,null,null,null,null,null,null,null,null,null,null,null,null,null,null,null,null,null,"ECON 143","Austn Econ Institutions & Perform"]
[null,null,null,null,null,null,null,null,null,null,null,null,null,null,null,null,null,null,null,null,null,"ECON 144","The International Economy"]
[null,null,null,null,null,null,null,null,null,null,null,null,null,null,null,null,null,null,null,null,null,"ECON 201","Intermediate Microeconomics"]
[null,null,null,null,null,null,null,null,null,null,null,null,null,null,null,null,null,null,null,null,null,"ECON 202","Intermediate Macroeconomics"]
[null,null,null,null,null,null,null,null,null,null,null,null,null,null,null,null,null,null,null,null,null,"ECON 203","Banking and Finance"]
[null,null,null,null,null,null,null,null,null,null,null,null,null,null,null,null,null,null,null,null,null,"ECON 221","Environ & Food: Econ Perspectives"]
[null,null,null,null,null,null,null,null,null,null,null,null,null,null,null,null,null,null,null,null,null,"ECON 223","Farm and Resource Management"]
[null,null,null,null,null,null,null,null,null,null,null,null,null,null,null,null,null,null,null,null,null,"ECON 224","Welfare Economics for Policy"]
[null,null,null,null,null,null,null,null,null,null,null,null,null,null,null,null,null,null,null,null,null,"ECON 226","Benefit-Cost Analysis"]
[null,null,null,null,null,null,null,null,null,null,null,null,null,null,null,null,null,null,null,null,null,"ECON 243","Austn Econ Institutions & Perform"]
[null,null,null,null,null,null,null,null,null,null,null,null,null,null,null,null,null,null,null,null,null,"ECON 244","The International Economy"]
[null,null,null,null,null,null,null,null,null,null,null,null,null,null,null,null,null,null,null,null,null,"ECON 245","Economy and Business in Modern Asia"]
[null,null,null,null,null,null,null,null,null,null,null,null,null,null,null,null,null,null,null,null,null,"ECON 246","The Austn Economy since 18th Cent"]
[null,null,null,null,null,null,null,null,null,null,null,null,null,null,null,null,null,null,null,null,null,"ECON 248","The Econ Developm't of Modern Japan"]
[null,null,null,null,null,null,null,null,null,null,null,null,null,null,null,null,null,null,null,null,null,"ECON 248","The Econ Developm't of Modern Japan"]
[null,null,null,null,null,null,null,null,null,null,null,null,null,null,null,null,null,null,null,null,null,"ECON 249","Technology and Economic Growth"]
[null,null,null,null,null,null,null,null,null,null,null,null,null,null,null,null,null,null,null,null,null,"ECON 250","South-East Asia: Economic & Social Change Since 1850"]
[null,null,null,null,null,null,null,null,null,null,null,null,null,null,null,null,null,null,null,null,null,"ECON 251","Australian Industrial Relations"]
[null,null,null,null,null,null,null,null,null,null,null,null,null,null,null,null,null,null,null,null,null,"ECON 271","Introductory Econometrics"]
[null,null,null,null,null,null,null,null,null,null,null,null,null,null,null,null,null,null,null,null,null,"ECON 301","Intermediate Microeconomics"]
[null,null,null,null,null,null,null,null,null,null,null,null,null,null,null,null,null,null,null,null,null,"ECON 303","Banking and Finance"]
[null,null,null,null,null,null,null,null,null,null,null,null,null,null,null,null,null,null,null,null,null,"ECON 303","Banking and Finance"]
[null,null,null,null,null,null,null,null,null,null,null,null,null,null,null,null,null,null,null,null,null,"ECON 303","Banking and Finance"]
[null,null,null,null,null,null,null,null,null,null,null,null,null,null,null,null,null,null,null,null,null,"ECON 311","Australian Macroeconomic Issues"]
[null,null,null,null,null,null,null,null,null,null,null,null,null,null,null,null,null,null,null,null,null,"ECON 317","International Trade and Payments"]
[null,null,null,null,null,null,null,null,null,null,null,null,null,null,null,null,null,null,null,null,null,"ECON 320","Global Business and Trade"]
[null,null,null,null,null,null,null,null,null,null,null,null,null,null,null,null,null,null,null,null,null,"ECON 324","Welfare Economics for Policy"]
[null,null,null,null,null,null,null,null,null,null,null,null,null,null,null,null,null,null,null,null,null,"ECON 326","Benefit-Cost Analysis"]
[null,null,null,null,null,null,null,null,null,null,null,null,null,null,null,null,null,null,null,null,null,"ECON 328","Microeconomic Policy Evaluation"]
[null,null,null,null,null,null,null,null,null,null,null,null,null,null,null,null,null,null,null,null,null,"ECON 329","Environmental & Natural Resource Economics"]
[null,null,null,null,null,null,null,null,null,null,null,null,null,null,null,null,null,null,null,null,null,"ECON 331","Introduction to Bioeconomics"]
[null,null,null,null,null,null,null,null,null,null,null,null,null,null,null,null,null,null,null,null,null,"ECON 334","Rural Finance and Risk Management"]
[null,null,null,null,null,null,null,null,null,null,null,null,null,null,null,null,null,null,null,null,null,"ECON 335","Commodity Markets"]
[null,null,null,null,null,null,null,null,null,null,null,null,null,null,null,null,null,null,null,null,null,"ECON 335","Commodity Markets"]
[null,null,null,null,null,null,null,null,null,null,null,null,null,null,null,null,null,null,null,null,null,"ECON 339","Professional Experience"]
[null,null,null,null,null,null,null,null,null,null,null,null,null,null,null,null,null,null,null,null,null,"ECON 339","Professional Experience"]
[null,null,null,null,null,null,null,null,null,null,null,null,null,null,null,null,null,null,null,null,null,"ECON 345","Economy and Business in Modern Asia"]
[null,null,null,null,null,null,null,null,null,null,null,null,null,null,null,null,null,null,null,null,null,"ECON 349","Technology and Economic Growth"]
[null,null,null,null,null,null,null,null,null,null,null,null,null,null,null,null,null,null,null,null,null,"ECON 350","South-east asian Economic & Social Change since 1850"]
[null,null,null,null,null,null,null,null,null,null,null,null,null,null,null,null,null,null,null,null,null,"ECON 351","Australian Industrial Relations"]
[null,null,null,null,null,null,null,null,null,null,null,null,null,null,null,null,null,null,null,null,null,"ECON 371","Introductory Econometrics"]
[null,null,null,null,null,null,null,null,null,null,null,null,null,null,null,null,null,null,null,null,null,"ECON 374","Econometric Analysis Fin Markets"]
[null,null,null,null,null,null,null,null,null,null,null,null,null,null,null,null,null,null,null,null,null,"ECON 376","Applied Econometrics"]
[null,null,null,null,null,null,null,null,null,null,null,null,null,null,null,null,null,null,null,null,null,"ECON 377","Efficiency & Productivity Analysis"]
[null,null,null,null,null,null,null,null,null,null,null,null,null,null,null,null,null,null,null,null,null,"ECON 390","Economics of Development"]
[null,null,null,null,null,null,null,null,null,null,null,null,null,null,null,null,null,null,null,null,null,"ECON 405","Banking and Finance"]
[null,null,null,null,null,null,null,null,null,null,null,null,null,null,null,null,null,null,null,null,null,"ECON 406","Economics for Management"]
[null,null,null,null,null,null,null,null,null,null,null,null,null,null,null,null,null,null,null,null,null,"ECON 408","Advanced Microeconomics"]
[null,null,null,null,null,null,null,null,null,null,null,null,null,null,null,null,null,null,null,null,null,"ECON 409","Advanced Macroeconomics"]
[null,null,null,null,null,null,null,null,null,null,null,null,null,null,null,null,null,null,null,null,null,"ECON 417","International Trade and Payments"]
[null,null,null,null,null,null,null,null,null,null,null,null,null,null,null,null,null,null,null,null,null,"ECON 420","Global Business and Trade"]
[null,null,null,null,null,null,null,null,null,null,null,null,null,null,null,null,null,null,null,null,null,"ECON 428","Microeconomic Policy Evaluation"]
[null,null,null,null,null,null,null,null,null,null,null,null,null,null,null,null,null,null,null,null,null,"ECON 429","Environmental & Natural Resource Economics"]
[null,null,null,null,null,null,null,null,null,null,null,null,null,null,null,null,null,null,null,null,null,"ECON 434","Finance and Risk Management"]
[null,null,null,null,null,null,null,null,null,null,null,null,null,null,null,null,null,null,null,null,null,"ECON 435","Commodity Markets"]
[null,null,null,null,null,null,null,null,null,null,null,null,null,null,null,null,null,null,null,null,null,"ECON 456","Industrialisation & Dev in Asia"]
[null,null,null,null,null,null,null,null,null,null,null,null,null,null,null,null,null,null,null,null,null,"ECON 474","Econometric Analysis Fin Markets"]
[null,null,null,null,null,null,null,null,null,null,null,null,null,null,null,null,null,null,null,null,null,"ECON 490","Economics of Development"]
[null,null,null,null,null,null,null,null,null,null,null,null,null,null,null,null,null,null,null,null,null,"ECON 498-12","Honours Dissertation"]
[null,null,null,null,null,null,null,null,null,null,null,null,null,null,null,null,null,null,null,null,null,"ECON 498-12","Honours Dissertation"]
[null,null,null,null,null,null,null,null,null,null,null,null,null,null,null,null,null,null,null,null,null,"ECON 520","International Political Economy"]
[null,null,null,null,null,null,null,null,null,null,null,null,null,null,null,null,null,null,null,null,null,"ECON 526","Benefit-Cost Analysis"]
[null,null,null,null,null,null,null,null,null,null,null,null,null,null,null,null,null,null,null,null,null,"ECON 527","Employment Relations in Australia"]
[null,null,null,null,null,null,null,null,null,null,null,null,null,null,null,null,null,null,null,null,null,"ECON 531","Introduction to Bioeconomics"]
[null,null,null,null,null,null,null,null,null,null,null,null,null,null,null,null,null,null,null,null,null,"ECON 556","Industrialisation & Dev in Asia"]
[null,null,null,null,null,null,null,null,null,null,null,null,null,null,null,null,null,null,null,null,null,"ECON 576","Applied Econometrics"]
[null,null,null,null,null,null,null,null,null,null,null,null,null,null,null,null,null,null,null,null,null,"ECON 577","Efficiency & Productivity Analysis"]
[null,null,null,null,null,null,null,null,null,null,null,null,null,null,null,null,null,null,null,null,null,"ECON 590","Economics of Development"]
[null,null,null,null,null,null,null,null,null,null,null,null,null,null,null,null,null,null,null,null,null,"ECON 591-12","Master's Minor Dissertation"]
[null,null,null,null,null,null,null,null,null,null,null,null,null,null,null,null,null,null,null,null,null,"ECON 592","Master's Major Dissertation"]
[null,null,null,null,null,null,null,null,null,null,null,null,null,null,null,null,null,null,null,null,null,"ECON 592","Master's Major Dissertation"]
[null,null,null,null,null,null,null,null,null,null,null,null,null,null,null,null,null,null,null,null,null,"ECON 593","Master's Thesis"]
[null,null,null,null,null,null,null,null,null,null,null,null,null,null,null,null,null,null,null,null,null,"ECON 593","Master's Thesis"]
[null,null,null,null,null,null,null,null,null,null,null,null,null,null,null,null,null,null,null,null,null,"ECON HONS","Honours Program"]
[null,null,null,null,null,null,null,null,null,null,null,null,null,null,null,null,null,null,null,null,null,"FIN 101","Introductory Finance"]
[null,null,null,null,null,null,null,null,null,null,null,null,null,null,null,null,null,null,null,null,null,"FIN 101","Introductory Finance"]
[null,null,null,null,null,null,null,null,null,null,null,null,null,null,null,null,null,null,null,null,null,"FIN 102","Financial Planning & Wealth Management"]
[null,null,null,null,null,null,null,null,null,null,null,null,null,null,null,null,null,null,null,null,null,"FIN 103","Investment Management in Financial Planning"]
[null,null,null,null,null,null,null,null,null,null,null,null,null,null,null,null,null,null,null,null,null,"FIN 200","Financial Planning and Wealth Management"]
[null,null,null,null,null,null,null,null,null,null,null,null,null,null,null,null,null,null,null,null,null,"FIN 201","Risk Management & Insurance"]
[null,null,null,null,null,null,null,null,null,null,null,null,null,null,null,null,null,null,null,null,null,"FIN 202","Superannuation & Retirement"]
[null,null,null,null,null,null,null,null,null,null,null,null,null,null,null,null,null,null,null,null,null,"FIN 301","Developing the Financial Plan"]
[null,null,null,null,null,null,null,null,null,null,null,null,null,null,null,null,null,null,null,null,null,"FIN 302","Superannuation and Retirement"]
[null,null,null,null,null,null,null,null,null,null,null,null,null,null,null,null,null,null,null,null,null,"FIN 303","Investment Management in Financial Planning"]
[null,null,null,null,null,null,null,null,null,null,null,null,null,null,null,null,null,null,null,null,null,"FIN 304","Risk Management and Insurance"]
[null,null,null,null,null,null,null,null,null,null,null,null,null,null,null,null,null,null,null,null,null,"FIN 305","Developing the Financial Plan "]
[null,null,null,null,null,null,null,null,null,null,null,null,null,null,null,null,null,null,null,null,null,"MM 105","Organisational Behaviour"]
[null,null,null,null,null,null,null,null,null,null,null,null,null,null,null,null,null,null,null,null,null,"MM 105","Organisational Behaviour"]
[null,null,null,null,null,null,null,null,null,null,null,null,null,null,null,null,null,null,null,null,null,"MM 105","Organisational Behaviour"]
[null,null,null,null,null,null,null,null,null,null,null,null,null,null,null,null,null,null,null,null,null,"MM 110","Introduction to Marketing"]
[null,null,null,null,null,null,null,null,null,null,null,null,null,null,null,null,null,null,null,null,null,"MM 110","Introduction to Marketing"]
[null,null,null,null,null,null,null,null,null,null,null,null,null,null,null,null,null,null,null,null,null,"MM 110","Introduction to Marketing"]
[null,null,null,null,null,null,null,null,null,null,null,null,null,null,null,null,null,null,null,null,null,"MM 200","Managing People and Organisations"]
[null,null,null,null,null,null,null,null,null,null,null,null,null,null,null,null,null,null,null,null,null,"MM 202","International Business"]
[null,null,null,null,null,null,null,null,null,null,null,null,null,null,null,null,null,null,null,null,null,"MM 221","Human Resource Management"]
[null,null,null,null,null,null,null,null,null,null,null,null,null,null,null,null,null,null,null,null,null,"MM 300","Strategic Planning and Management"]
[null,null,null,null,null,null,null,null,null,null,null,null,null,null,null,null,null,null,null,null,null,"MM 311","Customer Behaviour"]
[null,null,null,null,null,null,null,null,null,null,null,null,null,null,null,null,null,null,null,null,null,"MM 313","Marketing Communications"]
[null,null,null,null,null,null,null,null,null,null,null,null,null,null,null,null,null,null,null,null,null,"MM 314","Services Marketing"]
[null,null,null,null,null,null,null,null,null,null,null,null,null,null,null,null,null,null,null,null,null,"MM 316","Marketing Strategy and Management"]
[null,null,null,null,null,null,null,null,null,null,null,null,null,null,null,null,null,null,null,null,null,"MM 320","Organisational Development & Change"]
[null,null,null,null,null,null,null,null,null,null,null,null,null,null,null,null,null,null,null,null,null,"MM 320","Organisational Development & Change"]
[null,null,null,null,null,null,null,null,null,null,null,null,null,null,null,null,null,null,null,null,null,"MM 322","Managing Ethics in Organisations"]
[null,null,null,null,null,null,null,null,null,null,null,null,null,null,null,null,null,null,null,null,null,"MM 324","Organisational Leadership and Performance"]
[null,null,null,null,null,null,null,null,null,null,null,null,null,null,null,null,null,null,null,null,null,"MM 333","Human Planning & Management"]
[null,null,null,null,null,null,null,null,null,null,null,null,null,null,null,null,null,null,null,null,null,"MM 402","International Business"]
[null,null,null,null,null,null,null,null,null,null,null,null,null,null,null,null,null,null,null,null,null,"MM 403","Strategic Planning and Management"]
[null,null,null,null,null,null,null,null,null,null,null,null,null,null,null,null,null,null,null,null,null,"MM 403","Strategic Planning and Management"]
[null,null,null,null,null,null,null,null,null,null,null,null,null,null,null,null,null,null,null,null,null,"MM 405","Organisational Behaviour"]
[null,null,null,null,null,null,null,null,null,null,null,null,null,null,null,null,null,null,null,null,null,"MM 424","Project Management"]
[null,null,null,null,null,null,null,null,null,null,null,null,null,null,null,null,null,null,null,null,null,"MM 431","Marketing Management"]
[null,null,null,null,null,null,null,null,null,null,null,null,null,null,null,null,null,null,null,null,null,"MM 439","Strategic Human Resource Management"]
[null,null,null,null,null,null,null,null,null,null,null,null,null,null,null,null,null,null,null,null,null,"MM 453","Strategic Human Resource Management"]
[null,null,null,null,null,null,null,null,null,null,null,null,null,null,null,null,null,null,null,null,null,"MM 453","Workforce Planning & HR Development"]
[null,null,null,null,null,null,null,null,null,null,null,null,null,null,null,null,null,null,null,null,null,"MM 467","Professional Ethics"]
[null,null,null,null,null,null,null,null,null,null,null,null,null,null,null,null,null,null,null,null,null,"MM 467","Professional Ethics"]
[null,null,null,null,null,null,null,null,null,null,null,null,null,null,null,null,null,null,null,null,null,"MM 502","International Business"]
[null,null,null,null,null,null,null,null,null,null,null,null,null,null,null,null,null,null,null,null,null,"MM 511","Consumer Behaviour"]
[null,null,null,null,null,null,null,null,null,null,null,null,null,null,null,null,null,null,null,null,null,"MM 513","Integrated Marketing Communications"]
[null,null,null,null,null,null,null,null,null,null,null,null,null,null,null,null,null,null,null,null,null,"MM 514","Services Marketing"]
[null,null,null,null,null,null,null,null,null,null,null,null,null,null,null,null,null,null,null,null,null,"MM 521","Processes of Management"]
[null,null,null,null,null,null,null,null,null,null,null,null,null,null,null,null,null,null,null,null,null,"MM 523","Strategic Management"]
[null,null,null,null,null,null,null,null,null,null,null,null,null,null,null,null,null,null,null,null,null,"MM 525","Strategic Management Project"]
[null,null,null,null,null,null,null,null,null,null,null,null,null,null,null,null,null,null,null,null,null,"MM 528","Asian Business Management"]
[null,null,null,null,null,null,null,null,null,null,null,null,null,null,null,null,null,null,null,null,null,"MM 540","Managerial Thinking & Decision Making"]
[null,null,null,null,null,null,null,null,null,null,null,null,null,null,null,null,null,null,null,null,null,"MM 545","Organisational Leadership: Theory & Practice"]
[null,null,null,null,null,null,null,null,null,null,null,null,null,null,null,null,null,null,null,null,null,"MM 551","Business Ethics, CSR & Sustainability"]
[null,null,null,null,null,null,null,null,null,null,null,null,null,null,null,null,null,null,null,null,null,"MM 552","The Learning Organisation"]
[null,null,null,null,null,null,null,null,null,null,null,null,null,null,null,null,null,null,null,null,null,"MM 573","Management of Change"]
[null,null,null,null,null,null,null,null,null,null,null,null,null,null,null,null,null,null,null,null,null,"MM 580","Local Government"]
[null,null,null,null,null,null,null,null,null,null,null,null,null,null,null,null,null,null,null,null,null,"MM 591","Managing Across Cultures"]
[null,null,null,null,null,null,null,null,null,null,null,null,null,null,null,null,null,null,null,null,null,"OSBS 400","Overseas Business Study"]
[null,null,null,null,null,null,null,null,null,null,null,null,null,null,null,null,null,null,null,null,null,"OSBS 400","Overseas Business Study"]
[null,null,null,null,null,null,null,null,null,null,null,null,null,null,null,null,null,null,null,null,null,"OSWP 300","Overseas Work Placement"]
[null,null,null,null,null,null,null,null,null,null,null,null,null,null,null,null,null,null,null,null,null,"OSWP 300","Overseas Work Placement"]
[null,null,null,null,null,null,null,null,null,null,null,null,null,null,null,null,null,null,null,null,null,"QM 161","Business Statistics 1"]
[null,null,null,null,null,null,null,null,null,null,null,null,null,null,null,null,null,null,null,null,null,"QM 162","Business Statistics 2"]
[null,null,null,null,null,null,null,null,null,null,null,null,null,null,null,null,null,null,null,null,null,"QM 262","Business Statistics 2"]
[null,null,null,null,null,null,null,null,null,null,null,null,null,null,null,null,null,null,null,null,null,"QM 264","Intro to Business Forecasting"]
[null,null,null,null,null,null,null,null,null,null,null,null,null,null,null,null,null,null,null,null,null,"QM 265","Business Decision Making"]
[null,null,null,null,null,null,null,null,null,null,null,null,null,null,null,null,null,null,null,null,null,"QM 365","Business Decision Making"]
[null,null,null,null,null,null,null,null,null,null,null,null,null,null,null,null,null,null,null,null,null,"QM 367","Survey Methods for Bus & Econ"]
[null,null,null,null,null,null,null,null,null,null,null,null,null,null,null,null,null,null,null,null,null,"QM 461","Quantitative Techniques for Mngmt"]
[null,null,null,null,null,null,null,null,null,null,null,null,null,null,null,null,null,null,null,null,null,"QM 461","Quantitative Techniques for Mngmt"]
[null,null,null,null,null,null,null,null,null,null,null,null,null,null,null,null,null,null,null,null,null,"RSNR 120","Sustaining Our Rural Environment II"]
[null,null,null,null,null,null,null,null,null,null,null,null,null,null,null,null,null,null,null,null,null,"AFM101","Intro to Financial Accounting"]
[null,null,null,null,null,null,null,null,null,null,null,null,null,null,null,null,null,null,null,null,null,"AFM101","Intro to Financial Accounting"]
[null,null,null,null,null,null,null,null,null,null,null,null,null,null,null,null,null,null,null,null,null,"AFM101","Intro to Financial Accounting"]
[null,null,null,null,null,null,null,null,null,null,null,null,null,null,null,null,null,null,null,null,null,"AFM102","Principles of Cost Management"]
[null,null,null,null,null,null,null,null,null,null,null,null,null,null,null,null,null,null,null,null,null,"AFM112","Intro to Management Accounting"]
[null,null,null,null,null,null,null,null,null,null,null,null,null,null,null,null,null,null,null,null,null,"AFM112","Intro to Management Accounting"]
[null,null,null,null,null,null,null,null,null,null,null,null,null,null,null,null,null,null,null,null,null,"AFM112","Intro to Management Accounting"]
[null,null,null,null,null,null,null,null,null,null,null,null,null,null,null,null,null,null,null,null,null,"AFM202","Cost Management"]
[null,null,null,null,null,null,null,null,null,null,null,null,null,null,null,null,null,null,null,null,null,"AFM211","Intermediate Financial Accounting"]
[null,null,null,null,null,null,null,null,null,null,null,null,null,null,null,null,null,null,null,null,null,"AFM211","Intermediate Financial Accounting"]
[null,null,null,null,null,null,null,null,null,null,null,null,null,null,null,null,null,null,null,null,null,"AFM211","Intermediate Financial Accounting"]
[null,null,null,null,null,null,null,null,null,null,null,null,null,null,null,null,null,null,null,null,null,"AFM217","Financial Management I"]
[null,null,null,null,null,null,null,null,null,null,null,null,null,null,null,null,null,null,null,null,null,"AFM217","Financial Management I"]
[null,null,null,null,null,null,null,null,null,null,null,null,null,null,null,null,null,null,null,null,null,"AFM219","Financial Management II"]
[null,null,null,null,null,null,null,null,null,null,null,null,null,null,null,null,null,null,null,null,null,"AFM219","Financial Management II"]
[null,null,null,null,null,null,null,null,null,null,null,null,null,null,null,null,null,null,null,null,null,"AFM231","Corporate Finance"]
[null,null,null,null,null,null,null,null,null,null,null,null,null,null,null,null,null,null,null,null,null,"AFM231","Corporate Finance"]
[null,null,null,null,null,null,null,null,null,null,null,null,null,null,null,null,null,null,null,null,null,"AFM231","Corporate Finance"]
[null,null,null,null,null,null,null,null,null,null,null,null,null,null,null,null,null,null,null,null,null,"AFM231","Corporate Finance"]
[null,null,null,null,null,null,null,null,null,null,null,null,null,null,null,null,null,null,null,null,null,"AFM232","Financial Instruments & Markets"]
[null,null,null,null,null,null,null,null,null,null,null,null,null,null,null,null,null,null,null,null,null,"AFM242","Financial Instruments and Markets "]
[null,null,null,null,null,null,null,null,null,null,null,null,null,null,null,null,null,null,null,null,null,"AFM272","Accounting Information Systems"]
[null,null,null,null,null,null,null,null,null,null,null,null,null,null,null,null,null,null,null,null,null,"AFM301","Accounting Theory"]
[null,null,null,null,null,null,null,null,null,null,null,null,null,null,null,null,null,null,null,null,null,"AFM301","Accounting Theory"]
[null,null,null,null,null,null,null,null,null,null,null,null,null,null,null,null,null,null,null,null,null,"AFM302","Financial Planning"]
[null,null,null,null,null,null,null,null,null,null,null,null,null,null,null,null,null,null,null,null,null,"AFM302","Financial Planning"]
[null,null,null,null,null,null,null,null,null,null,null,null,null,null,null,null,null,null,null,null,null,"AFM304","Financial Statement Analysis"]
[null,null,null,null,null,null,null,null,null,null,null,null,null,null,null,null,null,null,null,null,null,"AFM305","Advanced Financial Accounting "]
[null,null,null,null,null,null,null,null,null,null,null,null,null,null,null,null,null,null,null,null,null,"AFM305","Advanced Financial Accounting "]
[null,null,null,null,null,null,null,null,null,null,null,null,null,null,null,null,null,null,null,null,null,"AFM306","Issues in Management Accounting"]
[null,null,null,null,null,null,null,null,null,null,null,null,null,null,null,null,null,null,null,null,null,"AFM311","Advanced Financial Accounting"]
[null,null,null,null,null,null,null,null,null,null,null,null,null,null,null,null,null,null,null,null,null,"AFM312","Auditing"]
[null,null,null,null,null,null,null,null,null,null,null,null,null,null,null,null,null,null,null,null,null,"AFM314","International Accounting"]
[null,null,null,null,null,null,null,null,null,null,null,null,null,null,null,null,null,null,null,null,null,"AFM316","Issues in Management Accounting"]
[null,null,null,null,null,null,null,null,null,null,null,null,null,null,null,null,null,null,null,null,null,"AFM319","Auditing"]
[null,null,null,null,null,null,null,null,null,null,null,null,null,null,null,null,null,null,null,null,null,"AFM319","Auditing"]
[null,null,null,null,null,null,null,null,null,null,null,null,null,null,null,null,null,null,null,null,null,"AFM322","Small Business Finance"]
[null,null,null,null,null,null,null,null,null,null,null,null,null,null,null,null,null,null,null,null,null,"AFM322","Small Business Finance"]
[null,null,null,null,null,null,null,null,null,null,null,null,null,null,null,null,null,null,null,null,null,"AFM324","Small Business Management"]
[null,null,null,null,null,null,null,null,null,null,null,null,null,null,null,null,null,null,null,null,null,"AFM326","Small Business Practice"]
[null,null,null,null,null,null,null,null,null,null,null,null,null,null,null,null,null,null,null,null,null,"AFM331","Financial Statement Analysis"]
[null,null,null,null,null,null,null,null,null,null,null,null,null,null,null,null,null,null,null,null,null,"AFM332","Security Analysis & Portfolio Mngmt"]
[null,null,null,null,null,null,null,null,null,null,null,null,null,null,null,null,null,null,null,null,null,"AFM334","Bank Financial Management"]
[null,null,null,null,null,null,null,null,null,null,null,null,null,null,null,null,null,null,null,null,null,"AFM335","International Financial Management"]
[null,null,null,null,null,null,null,null,null,null,null,null,null,null,null,null,null,null,null,null,null,"AFM336","Credit Analysis and Management"]
[null,null,null,null,null,null,null,null,null,null,null,null,null,null,null,null,null,null,null,null,null,"AFM340","Fraud Prevention & Investigation"]
[null,null,null,null,null,null,null,null,null,null,null,null,null,null,null,null,null,null,null,null,null,"AFM372","Management Information Systems"]
[null,null,null,null,null,null,null,null,null,null,null,null,null,null,null,null,null,null,null,null,null,"AFM401","Accounting Theory"]
[null,null,null,null,null,null,null,null,null,null,null,null,null,null,null,null,null,null,null,null,null,"AFM402","Accounting & Finance for Managers"]
[null,null,null,null,null,null,null,null,null,null,null,null,null,null,null,null,null,null,null,null,null,"AFM403","Management Accounting "]
[null,null,null,null,null,null,null,null,null,null,null,null,null,null,null,null,null,null,null,null,null,"AFM403","Management Accounting"]
[null,null,null,null,null,null,null,null,null,null,null,null,null,null,null,null,null,null,null,null,null,"AFM406","Introductory Accounting"]
[null,null,null,null,null,null,null,null,null,null,null,null,null,null,null,null,null,null,null,null,null,"AFM406","Introductory Accounting"]
[null,null,null,null,null,null,null,null,null,null,null,null,null,null,null,null,null,null,null,null,null,"AFM410","Intermediate Financial Accounting"]
[null,null,null,null,null,null,null,null,null,null,null,null,null,null,null,null,null,null,null,null,null,"AFM412","Auditing"]
[null,null,null,null,null,null,null,null,null,null,null,null,null,null,null,null,null,null,null,null,null,"AFM415","International Accounting"]
[null,null,null,null,null,null,null,null,null,null,null,null,null,null,null,null,null,null,null,null,null,"AFM416","Issues in Management Accounting"]
[null,null,null,null,null,null,null,null,null,null,null,null,null,null,null,null,null,null,null,null,null,"AFM417","Advanced Financial Accounting"]
[null,null,null,null,null,null,null,null,null,null,null,null,null,null,null,null,null,null,null,null,null,"AFM422","Small Business Finance"]
[null,null,null,null,null,null,null,null,null,null,null,null,null,null,null,null,null,null,null,null,null,"AFM424","Small Business Management"]
[null,null,null,null,null,null,null,null,null,null,null,null,null,null,null,null,null,null,null,null,null,"AFM431","Financial Statement Analysis"]
[null,null,null,null,null,null,null,null,null,null,null,null,null,null,null,null,null,null,null,null,null,"AFM432","Security Analysis & Portfolio Mngmt"]
[null,null,null,null,null,null,null,null,null,null,null,null,null,null,null,null,null,null,null,null,null,"AFM440","Fraud Examination"]
[null,null,null,null,null,null,null,null,null,null,null,null,null,null,null,null,null,null,null,null,null,"AFM442","Financial Instruments and Markets "]
[null,null,null,null,null,null,null,null,null,null,null,null,null,null,null,null,null,null,null,null,null,"AFM466","Risk Management and Insurance"]
[null,null,null,null,null,null,null,null,null,null,null,null,null,null,null,null,null,null,null,null,null,"AFM467","Superannuation and Retirement"]
[null,null,null,null,null,null,null,null,null,null,null,null,null,null,null,null,null,null,null,null,null,"AFM468","Investment Management in Financial Planning"]
[null,null,null,null,null,null,null,null,null,null,null,null,null,null,null,null,null,null,null,null,null,"AFM472","Management Information Systems"]
[null,null,null,null,null,null,null,null,null,null,null,null,null,null,null,null,null,null,null,null,null,"AFM501","Accounting Theory & Research"]
[null,null,null,null,null,null,null,null,null,null,null,null,null,null,null,null,null,null,null,null,null,"AFM501","Accounting Theory & Research"]
[null,null,null,null,null,null,null,null,null,null,null,null,null,null,null,null,null,null,null,null,null,"AFM502","Financial Planning"]
[null,null,null,null,null,null,null,null,null,null,null,null,null,null,null,null,null,null,null,null,null,"AFM504","Financial Statement Analysis"]
[null,null,null,null,null,null,null,null,null,null,null,null,null,null,null,null,null,null,null,null,null,"AFM505","Advanced Financial Accounting "]
[null,null,null,null,null,null,null,null,null,null,null,null,null,null,null,null,null,null,null,null,null,"AFM505","Advanced Financial Accounting "]
[null,null,null,null,null,null,null,null,null,null,null,null,null,null,null,null,null,null,null,null,null,"AFM506","Issues in Management Accounting"]
[null,null,null,null,null,null,null,null,null,null,null,null,null,null,null,null,null,null,null,null,null,"AFM519","Auditing"]
[null,null,null,null,null,null,null,null,null,null,null,null,null,null,null,null,null,null,null,null,null,"AFM519","Auditing"]
[null,null,null,null,null,null,null,null,null,null,null,null,null,null,null,null,null,null,null,null,null,"AFM522","Small Business Finance"]
[null,null,null,null,null,null,null,null,null,null,null,null,null,null,null,null,null,null,null,null,null,"AFM522","Small Business Finance"]
[null,null,null,null,null,null,null,null,null,null,null,null,null,null,null,null,null,null,null,null,null,"AFM524","Entrepreneurship"]
[null,null,null,null,null,null,null,null,null,null,null,null,null,null,null,null,null,null,null,null,null,"AFM524","Entrepreneurship"]
[null,null,null,null,null,null,null,null,null,null,null,null,null,null,null,null,null,null,null,null,null,"AFM527","Issues in Management Accounting"]
[null,null,null,null,null,null,null,null,null,null,null,null,null,null,null,null,null,null,null,null,null,"AFM531","Managerial Finance"]
[null,null,null,null,null,null,null,null,null,null,null,null,null,null,null,null,null,null,null,null,null,"AFM532","Security Analysis & Portfolio Mngmt"]
[null,null,null,null,null,null,null,null,null,null,null,null,null,null,null,null,null,null,null,null,null,"AFM540","Fraud Prevention & Investigation"]
[null,null,null,null,null,null,null,null,null,null,null,null,null,null,null,null,null,null,null,null,null,"AFM541","Advanced Financial Accounting"]
[null,null,null,null,null,null,null,null,null,null,null,null,null,null,null,null,null,null,null,null,null,"AFM541","Advanced Financial Accounting"]
[null,null,null,null,null,null,null,null,null,null,null,null,null,null,null,null,null,null,null,null,null,"AFM564","Issues in Auditing & Prof Practice"]
[null,null,null,null,null,null,null,null,null,null,null,null,null,null,null,null,null,null,null,null,null,"AFM565","Financial Planning & Wealth Management"]
[null,null,null,null,null,null,null,null,null,null,null,null,null,null,null,null,null,null,null,null,null,"AFM566","Risk Management & Insurance"]
[null,null,null,null,null,null,null,null,null,null,null,null,null,null,null,null,null,null,null,null,null,"AFM567","Superannuation & Retirement"]
[null,null,null,null,null,null,null,null,null,null,null,null,null,null,null,null,null,null,null,null,null,"AFM568","Investment Management in Financial Planning"]
[null,null,null,null,null,null,null,null,null,null,null,null,null,null,null,null,null,null,null,null,null,"AFM569","Developing the Financial Plan"]
[null,null,null,null,null,null,null,null,null,null,null,null,null,null,null,null,null,null,null,null,null,"AFM569","Developing the Financial Plan"]
[null,null,null,null,null,null,null,null,null,null,null,null,null,null,null,null,null,null,null,null,null,"AGRO100","Agriculture in Practice"]
[null,null,null,null,null,null,null,null,null,null,null,null,null,null,null,null,null,null,null,null,null,"ANPR350","Commercial Mngmt Sheep Enterprise"]
[null,null,null,null,null,null,null,null,null,null,null,null,null,null,null,null,null,null,null,null,null,"ANPR450","Commercial Mngmt Sheep Enterprise"]
[null,null,null,null,null,null,null,null,null,null,null,null,null,null,null,null,null,null,null,null,null,"ANPR460","Beef Production"]
[null,null,null,null,null,null,null,null,null,null,null,null,null,null,null,null,null,null,null,null,null,"BEPP396","Special Topic"]
[null,null,null,null,null,null,null,null,null,null,null,null,null,null,null,null,null,null,null,null,null,"BEPP396","Special Topic"]
[null,null,null,null,null,null,null,null,null,null,null,null,null,null,null,null,null,null,null,null,null,"BEPP396","Special Topic"]
[null,null,null,null,null,null,null,null,null,null,null,null,null,null,null,null,null,null,null,null,null,"BEPP396","Special Topic"]
[null,null,null,null,null,null,null,null,null,null,null,null,null,null,null,null,null,null,null,null,null,"BEPP491A","Dissertation"]
[null,null,null,null,null,null,null,null,null,null,null,null,null,null,null,null,null,null,null,null,null,"BEPP491A","Dissertation"]
[null,null,null,null,null,null,null,null,null,null,null,null,null,null,null,null,null,null,null,null,null,"BEPP491A","Dissertation"]
[null,null,null,null,null,null,null,null,null,null,null,null,null,null,null,null,null,null,null,null,null,"BEPP491B","Dissertation"]
[null,null,null,null,null,null,null,null,null,null,null,null,null,null,null,null,null,null,null,null,null,"BEPP496","Special Topic"]
[null,null,null,null,null,null,null,null,null,null,null,null,null,null,null,null,null,null,null,null,null,"BEPP496","Special Topic"]
[null,null,null,null,null,null,null,null,null,null,null,null,null,null,null,null,null,null,null,null,null,"BEPP591","Dissertation"]
[null,null,null,null,null,null,null,null,null,null,null,null,null,null,null,null,null,null,null,null,null,"BEPP591","Dissertation"]
[null,null,null,null,null,null,null,null,null,null,null,null,null,null,null,null,null,null,null,null,null,"BEPP591","Dissertation"]
[null,null,null,null,null,null,null,null,null,null,null,null,null,null,null,null,null,null,null,null,null,"BEPP596","Special Topic"]
[null,null,null,null,null,null,null,null,null,null,null,null,null,null,null,null,null,null,null,null,null,"BEPP596","Special Topic"]
[null,null,null,null,null,null,null,null,null,null,null,null,null,null,null,null,null,null,null,null,null,"BEPP791A","Dissertation"]
[null,null,null,null,null,null,null,null,null,null,null,null,null,null,null,null,null,null,null,null,null,"BEPP791A","Dissertation"]
[null,null,null,null,null,null,null,null,null,null,null,null,null,null,null,null,null,null,null,null,null,"BEPP791A","Dissertation"]
[null,null,null,null,null,null,null,null,null,null,null,null,null,null,null,null,null,null,null,null,null,"BEPP791B","Dissertation"]
[null,null,null,null,null,null,null,null,null,null,null,null,null,null,null,null,null,null,null,null,null,"BEPP791B","Dissertation"]
[null,null,null,null,null,null,null,null,null,null,null,null,null,null,null,null,null,null,null,null,null,"BEPP791B","Dissertation"]
[null,null,null,null,null,null,null,null,null,null,null,null,null,null,null,null,null,null,null,null,null,"BEPP796","Special Topic"]
[null,null,null,null,null,null,null,null,null,null,null,null,null,null,null,null,null,null,null,null,null,"BEPP796","Special Topic"]
[null,null,null,null,null,null,null,null,null,null,null,null,null,null,null,null,null,null,null,null,null,"BEPP796","Special Topic"]
[null,null,null,null,null,null,null,null,null,null,null,null,null,null,null,null,null,null,null,null,null,"BUS301","Value Chain Analysis"]
[null,null,null,null,null,null,null,null,null,null,null,null,null,null,null,null,null,null,null,null,null,"BUS305","Organisational Research Methods"]
[null,null,null,null,null,null,null,null,null,null,null,null,null,null,null,null,null,null,null,null,null,"BUS396","Special Topic"]
[null,null,null,null,null,null,null,null,null,null,null,null,null,null,null,null,null,null,null,null,null,"BUS396","Special Topic"]
[null,null,null,null,null,null,null,null,null,null,null,null,null,null,null,null,null,null,null,null,null,"BUS396","Special Topic"]
[null,null,null,null,null,null,null,null,null,null,null,null,null,null,null,null,null,null,null,null,null,"BUS396","Special Topic"]
[null,null,null,null,null,null,null,null,null,null,null,null,null,null,null,null,null,null,null,null,null,"BUS491A","Dissertation"]
[null,null,null,null,null,null,null,null,null,null,null,null,null,null,null,null,null,null,null,null,null,"BUS491A","Dissertation"]
[null,null,null,null,null,null,null,null,null,null,null,null,null,null,null,null,null,null,null,null,null,"BUS491A","Dissertation"]
[null,null,null,null,null,null,null,null,null,null,null,null,null,null,null,null,null,null,null,null,null,"BUS491A","Dissertation"]
[null,null,null,null,null,null,null,null,null,null,null,null,null,null,null,null,null,null,null,null,null,"BUS491B","Dissertation"]
[null,null,null,null,null,null,null,null,null,null,null,null,null,null,null,null,null,null,null,null,null,"BUS491B","Dissertation"]
[null,null,null,null,null,null,null,null,null,null,null,null,null,null,null,null,null,null,null,null,null,"BUS491B","Dissertation"]
[null,null,null,null,null,null,null,null,null,null,null,null,null,null,null,null,null,null,null,null,null,"BUS491C","Dissertation"]
[null,null,null,null,null,null,null,null,null,null,null,null,null,null,null,null,null,null,null,null,null,"BUS491C","Dissertation"]
[null,null,null,null,null,null,null,null,null,null,null,null,null,null,null,null,null,null,null,null,null,"BUS491C","Dissertation"]
[null,null,null,null,null,null,null,null,null,null,null,null,null,null,null,null,null,null,null,null,null,"BUS491C","Dissertation"]
[null,null,null,null,null,null,null,null,null,null,null,null,null,null,null,null,null,null,null,null,null,"BUS491C","Dissertation"]
[null,null,null,null,null,null,null,null,null,null,null,null,null,null,null,null,null,null,null,null,null,"BUS491C","Dissertation"]
[null,null,null,null,null,null,null,null,null,null,null,null,null,null,null,null,null,null,null,null,null,"BUS491C","Dissertation"]
[null,null,null,null,null,null,null,null,null,null,null,null,null,null,null,null,null,null,null,null,null,"BUS496","Special Topic"]
[null,null,null,null,null,null,null,null,null,null,null,null,null,null,null,null,null,null,null,null,null,"BUS496","Special Topic"]
[null,null,null,null,null,null,null,null,null,null,null,null,null,null,null,null,null,null,null,null,null,"BUS496","Special Topic"]
[null,null,null,null,null,null,null,null,null,null,null,null,null,null,null,null,null,null,null,null,null,"BUS496","Special Topic"]
[null,null,null,null,null,null,null,null,null,null,null,null,null,null,null,null,null,null,null,null,null,"BUS501","Value Chain Analysis"]
[null,null,null,null,null,null,null,null,null,null,null,null,null,null,null,null,null,null,null,null,null,"BUS556","Methods in Organisational Research"]
[null,null,null,null,null,null,null,null,null,null,null,null,null,null,null,null,null,null,null,null,null,"BUS558","Analysing Organisational Data"]
[null,null,null,null,null,null,null,null,null,null,null,null,null,null,null,null,null,null,null,null,null,"BUS591","Dissertation"]
[null,null,null,null,null,null,null,null,null,null,null,null,null,null,null,null,null,null,null,null,null,"BUS591","Dissertation"]
[null,null,null,null,null,null,null,null,null,null,null,null,null,null,null,null,null,null,null,null,null,"BUS591","Dissertation"]
[null,null,null,null,null,null,null,null,null,null,null,null,null,null,null,null,null,null,null,null,null,"BUS591A","Dissertation"]
[null,null,null,null,null,null,null,null,null,null,null,null,null,null,null,null,null,null,null,null,null,"BUS591A","Dissertation"]
[null,null,null,null,null,null,null,null,null,null,null,null,null,null,null,null,null,null,null,null,null,"BUS591A","Dissertation"]
[null,null,null,null,null,null,null,null,null,null,null,null,null,null,null,null,null,null,null,null,null,"BUS591A","Dissertation"]
[null,null,null,null,null,null,null,null,null,null,null,null,null,null,null,null,null,null,null,null,null,"BUS591A","Dissertation"]
[null,null,null,null,null,null,null,null,null,null,null,null,null,null,null,null,null,null,null,null,null,"BUS591A","Dissertation"]
[null,null,null,null,null,null,null,null,null,null,null,null,null,null,null,null,null,null,null,null,null,"BUS591B","Dissertation"]
[null,null,null,null,null,null,null,null,null,null,null,null,null,null,null,null,null,null,null,null,null,"BUS591B","Dissertation"]
[null,null,null,null,null,null,null,null,null,null,null,null,null,null,null,null,null,null,null,null,null,"BUS591B","Dissertation"]
[null,null,null,null,null,null,null,null,null,null,null,null,null,null,null,null,null,null,null,null,null,"BUS591B","Dissertation"]
[null,null,null,null,null,null,null,null,null,null,null,null,null,null,null,null,null,null,null,null,null,"BUS591B","Dissertation"]
[null,null,null,null,null,null,null,null,null,null,null,null,null,null,null,null,null,null,null,null,null,"BUS591B","Dissertation"]
[null,null,null,null,null,null,null,null,null,null,null,null,null,null,null,null,null,null,null,null,null,"BUS592","Master's Major Dissertation"]
[null,null,null,null,null,null,null,null,null,null,null,null,null,null,null,null,null,null,null,null,null,"BUS592","Master's Major Dissertation"]
[null,null,null,null,null,null,null,null,null,null,null,null,null,null,null,null,null,null,null,null,null,"BUS596","Special Topic"]
[null,null,null,null,null,null,null,null,null,null,null,null,null,null,null,null,null,null,null,null,null,"BUS596","Special Topic"]
[null,null,null,null,null,null,null,null,null,null,null,null,null,null,null,null,null,null,null,null,null,"BUS596","Special Topic"]
[null,null,null,null,null,null,null,null,null,null,null,null,null,null,null,null,null,null,null,null,null,"BUS596","Special Topic"]
[null,null,null,null,null,null,null,null,null,null,null,null,null,null,null,null,null,null,null,null,null,"COMP504","Management Information Systems"]
[null,null,null,null,null,null,null,null,null,null,null,null,null,null,null,null,null,null,null,null,null,"ECON101","Introductory Microeconomics"]
[null,null,null,null,null,null,null,null,null,null,null,null,null,null,null,null,null,null,null,null,null,"ECON101","Introductory Microeconomics"]
[null,null,null,null,null,null,null,null,null,null,null,null,null,null,null,null,null,null,null,null,null,"ECON101","Introductory Microeconomics"]
[null,null,null,null,null,null,null,null,null,null,null,null,null,null,null,null,null,null,null,null,null,"ECON102","Introductory Macroeconomics"]
[null,null,null,null,null,null,null,null,null,null,null,null,null,null,null,null,null,null,null,null,null,"ECON102","Introductory Macroeconomics"]
[null,null,null,null,null,null,null,null,null,null,null,null,null,null,null,null,null,null,null,null,null,"ECON121","Environ & Food: Econ Perspectives"]
[null,null,null,null,null,null,null,null,null,null,null,null,null,null,null,null,null,null,null,null,null,"ECON143","Austn Econ Institutions & Perform"]
[null,null,null,null,null,null,null,null,null,null,null,null,null,null,null,null,null,null,null,null,null,"ECON143","Austn Econ Institutions & Perform"]
[null,null,null,null,null,null,null,null,null,null,null,null,null,null,null,null,null,null,null,null,null,"ECON143","Austn Econ Institutions & Perform"]
[null,null,null,null,null,null,null,null,null,null,null,null,null,null,null,null,null,null,null,null,null,"ECON144","The International Economy"]
[null,null,null,null,null,null,null,null,null,null,null,null,null,null,null,null,null,null,null,null,null,"ECON201","Intermediate Microeconomics"]
[null,null,null,null,null,null,null,null,null,null,null,null,null,null,null,null,null,null,null,null,null,"ECON202","Intermediate Macroeconomics"]
[null,null,null,null,null,null,null,null,null,null,null,null,null,null,null,null,null,null,null,null,null,"ECON203","Banking and Finance"]
[null,null,null,null,null,null,null,null,null,null,null,null,null,null,null,null,null,null,null,null,null,"ECON203","Banking and Finance"]
[null,null,null,null,null,null,null,null,null,null,null,null,null,null,null,null,null,null,null,null,null,"ECON203","Banking and Finance"]
[null,null,null,null,null,null,null,null,null,null,null,null,null,null,null,null,null,null,null,null,null,"ECON221","Environ & Food: Econ Perspectives"]
[null,null,null,null,null,null,null,null,null,null,null,null,null,null,null,null,null,null,null,null,null,"ECON223","Farm and Resource Management"]
[null,null,null,null,null,null,null,null,null,null,null,null,null,null,null,null,null,null,null,null,null,"ECON224","Welfare Economics for Policy"]
[null,null,null,null,null,null,null,null,null,null,null,null,null,null,null,null,null,null,null,null,null,"ECON226","Benefit-Cost Analysis"]
[null,null,null,null,null,null,null,null,null,null,null,null,null,null,null,null,null,null,null,null,null,"ECON243","Austn Econ Institutions & Perform"]
[null,null,null,null,null,null,null,null,null,null,null,null,null,null,null,null,null,null,null,null,null,"ECON243","Austn Econ Institutions & Perform"]
[null,null,null,null,null,null,null,null,null,null,null,null,null,null,null,null,null,null,null,null,null,"ECON243","Austn Econ Institutions & Perform"]
[null,null,null,null,null,null,null,null,null,null,null,null,null,null,null,null,null,null,null,null,null,"ECON244","The International Economy"]
[null,null,null,null,null,null,null,null,null,null,null,null,null,null,null,null,null,null,null,null,null,"ECON245","Economy and Business in Modern Asia"]
[null,null,null,null,null,null,null,null,null,null,null,null,null,null,null,null,null,null,null,null,null,"ECON246","The Austn Economy since 18th Cent"]
[null,null,null,null,null,null,null,null,null,null,null,null,null,null,null,null,null,null,null,null,null,"ECON248","The Econ Developm't of Modern Japan"]
[null,null,null,null,null,null,null,null,null,null,null,null,null,null,null,null,null,null,null,null,null,"ECON248","The Econ Developm't of Modern Japan"]
[null,null,null,null,null,null,null,null,null,null,null,null,null,null,null,null,null,null,null,null,null,"ECON249","Technology and Economic Growth"]
[null,null,null,null,null,null,null,null,null,null,null,null,null,null,null,null,null,null,null,null,null,"ECON250","South-East Asia: Economic & Social Change Since 1850"]
[null,null,null,null,null,null,null,null,null,null,null,null,null,null,null,null,null,null,null,null,null,"ECON251","Australian Industrial Relations"]
[null,null,null,null,null,null,null,null,null,null,null,null,null,null,null,null,null,null,null,null,null,"ECON271","Introductory Econometrics"]
[null,null,null,null,null,null,null,null,null,null,null,null,null,null,null,null,null,null,null,null,null,"ECON301","Intermediate Microeconomics"]
[null,null,null,null,null,null,null,null,null,null,null,null,null,null,null,null,null,null,null,null,null,"ECON303","Banking and Finance"]
[null,null,null,null,null,null,null,null,null,null,null,null,null,null,null,null,null,null,null,null,null,"ECON303","Banking and Finance"]
[null,null,null,null,null,null,null,null,null,null,null,null,null,null,null,null,null,null,null,null,null,"ECON303","Banking and Finance"]
[null,null,null,null,null,null,null,null,null,null,null,null,null,null,null,null,null,null,null,null,null,"ECON311","Australian Macroeconomic Issues"]
[null,null,null,null,null,null,null,null,null,null,null,null,null,null,null,null,null,null,null,null,null,"ECON317","International Trade and Payments"]
[null,null,null,null,null,null,null,null,null,null,null,null,null,null,null,null,null,null,null,null,null,"ECON320","Global Business and Trade"]
[null,null,null,null,null,null,null,null,null,null,null,null,null,null,null,null,null,null,null,null,null,"ECON324","Welfare Economics for Policy"]
[null,null,null,null,null,null,null,null,null,null,null,null,null,null,null,null,null,null,null,null,null,"ECON326","Benefit-Cost Analysis"]
[null,null,null,null,null,null,null,null,null,null,null,null,null,null,null,null,null,null,null,null,null,"ECON328","Microeconomic Policy Evaluation"]
[null,null,null,null,null,null,null,null,null,null,null,null,null,null,null,null,null,null,null,null,null,"ECON329","Environmental & Natural Resource Economics"]
[null,null,null,null,null,null,null,null,null,null,null,null,null,null,null,null,null,null,null,null,null,"ECON331","Introduction to Bioeconomics"]
[null,null,null,null,null,null,null,null,null,null,null,null,null,null,null,null,null,null,null,null,null,"ECON334","Rural Finance and Risk Management"]
[null,null,null,null,null,null,null,null,null,null,null,null,null,null,null,null,null,null,null,null,null,"ECON335","Commodity Markets"]
[null,null,null,null,null,null,null,null,null,null,null,null,null,null,null,null,null,null,null,null,null,"ECON335","Commodity Markets"]
[null,null,null,null,null,null,null,null,null,null,null,null,null,null,null,null,null,null,null,null,null,"ECON339","Professional Experience"]
[null,null,null,null,null,null,null,null,null,null,null,null,null,null,null,null,null,null,null,null,null,"ECON339","Professional Experience"]
[null,null,null,null,null,null,null,null,null,null,null,null,null,null,null,null,null,null,null,null,null,"ECON345","Economy and Business in Modern Asia"]
[null,null,null,null,null,null,null,null,null,null,null,null,null,null,null,null,null,null,null,null,null,"ECON349","Technology and Economic Growth"]
[null,null,null,null,null,null,null,null,null,null,null,null,null,null,null,null,null,null,null,null,null,"ECON350","South-east asian Economic & Social Change since 1850"]
[null,null,null,null,null,null,null,null,null,null,null,null,null,null,null,null,null,null,null,null,null,"ECON351","Australian Industrial Relations"]
[null,null,null,null,null,null,null,null,null,null,null,null,null,null,null,null,null,null,null,null,null,"ECON371","Introductory Econometrics"]
[null,null,null,null,null,null,null,null,null,null,null,null,null,null,null,null,null,null,null,null,null,"ECON374","Econometric Analysis Fin Markets"]
[null,null,null,null,null,null,null,null,null,null,null,null,null,null,null,null,null,null,null,null,null,"ECON376","Applied Econometrics"]
[null,null,null,null,null,null,null,null,null,null,null,null,null,null,null,null,null,null,null,null,null,"ECON377","Efficiency & Productivity Analysis"]
[null,null,null,null,null,null,null,null,null,null,null,null,null,null,null,null,null,null,null,null,null,"ECON390","Economics of Development"]
[null,null,null,null,null,null,null,null,null,null,null,null,null,null,null,null,null,null,null,null,null,"ECON405","Banking and Finance"]
[null,null,null,null,null,null,null,null,null,null,null,null,null,null,null,null,null,null,null,null,null,"ECON405","Banking and Finance"]
[null,null,null,null,null,null,null,null,null,null,null,null,null,null,null,null,null,null,null,null,null,"ECON406","Economics for Management"]
[null,null,null,null,null,null,null,null,null,null,null,null,null,null,null,null,null,null,null,null,null,"ECON408","Advanced Microeconomics"]
[null,null,null,null,null,null,null,null,null,null,null,null,null,null,null,null,null,null,null,null,null,"ECON409","Advanced Macroeconomics"]
[null,null,null,null,null,null,null,null,null,null,null,null,null,null,null,null,null,null,null,null,null,"ECON417","International Trade and Payments"]
[null,null,null,null,null,null,null,null,null,null,null,null,null,null,null,null,null,null,null,null,null,"ECON420","Global Business and Trade"]
[null,null,null,null,null,null,null,null,null,null,null,null,null,null,null,null,null,null,null,null,null,"ECON428","Microeconomic Policy Evaluation"]
[null,null,null,null,null,null,null,null,null,null,null,null,null,null,null,null,null,null,null,null,null,"ECON429","Environmental & Natural Resource Economics"]
[null,null,null,null,null,null,null,null,null,null,null,null,null,null,null,null,null,null,null,null,null,"ECON434","Finance and Risk Management"]
[null,null,null,null,null,null,null,null,null,null,null,null,null,null,null,null,null,null,null,null,null,"ECON435","Commodity Markets"]
[null,null,null,null,null,null,null,null,null,null,null,null,null,null,null,null,null,null,null,null,null,"ECON456","Industrialisation & Dev in Asia"]
[null,null,null,null,null,null,null,null,null,null,null,null,null,null,null,null,null,null,null,null,null,"ECON474","Econometric Analysis Fin Markets"]
[null,null,null,null,null,null,null,null,null,null,null,null,null,null,null,null,null,null,null,null,null,"ECON490","Economics of Development"]
[null,null,null,null,null,null,null,null,null,null,null,null,null,null,null,null,null,null,null,null,null,"ECON498-12","Honours Dissertation"]
[null,null,null,null,null,null,null,null,null,null,null,null,null,null,null,null,null,null,null,null,null,"ECON498-12","Honours Dissertation"]
[null,null,null,null,null,null,null,null,null,null,null,null,null,null,null,null,null,null,null,null,null,"ECON520","International Political Economy"]
[null,null,null,null,null,null,null,null,null,null,null,null,null,null,null,null,null,null,null,null,null,"ECON526","Benefit-Cost Analysis"]
[null,null,null,null,null,null,null,null,null,null,null,null,null,null,null,null,null,null,null,null,null,"ECON527","Employment Relations in Australia"]
[null,null,null,null,null,null,null,null,null,null,null,null,null,null,null,null,null,null,null,null,null,"ECON531","Introduction to Bioeconomics"]
[null,null,null,null,null,null,null,null,null,null,null,null,null,null,null,null,null,null,null,null,null,"ECON556","Industrialisation & Dev in Asia"]
[null,null,null,null,null,null,null,null,null,null,null,null,null,null,null,null,null,null,null,null,null,"ECON576","Applied Econometrics"]
[null,null,null,null,null,null,null,null,null,null,null,null,null,null,null,null,null,null,null,null,null,"ECON577","Efficiency & Productivity Analysis"]
[null,null,null,null,null,null,null,null,null,null,null,null,null,null,null,null,null,null,null,null,null,"ECON590","Economics of Development"]
[null,null,null,null,null,null,null,null,null,null,null,null,null,null,null,null,null,null,null,null,null,"ECON591-12","Master's Minor Dissertation"]
[null,null,null,null,null,null,null,null,null,null,null,null,null,null,null,null,null,null,null,null,null,"ECON592","Master's Major Dissertation"]
[null,null,null,null,null,null,null,null,null,null,null,null,null,null,null,null,null,null,null,null,null,"ECON592","Master's Major Dissertation"]
[null,null,null,null,null,null,null,null,null,null,null,null,null,null,null,null,null,null,null,null,null,"ECON593","Master's Thesis"]
[null,null,null,null,null,null,null,null,null,null,null,null,null,null,null,null,null,null,null,null,null,"ECON593","Master's Thesis"]
[null,null,null,null,null,null,null,null,null,null,null,null,null,null,null,null,null,null,null,null,null,"ECONHONS","Honours Program"]
[null,null,null,null,null,null,null,null,null,null,null,null,null,null,null,null,null,null,null,null,null,"FIN101","Introductory Finance"]
[null,null,null,null,null,null,null,null,null,null,null,null,null,null,null,null,null,null,null,null,null,"FIN101","Introductory Finance"]
[null,null,null,null,null,null,null,null,null,null,null,null,null,null,null,null,null,null,null,null,null,"FIN102","Financial Planning & Wealth Management"]
[null,null,null,null,null,null,null,null,null,null,null,null,null,null,null,null,null,null,null,null,null,"FIN103","Investment Management in Financial Planning"]
[null,null,null,null,null,null,null,null,null,null,null,null,null,null,null,null,null,null,null,null,null,"FIN200","Financial Planning and Wealth Management"]
[null,null,null,null,null,null,null,null,null,null,null,null,null,null,null,null,null,null,null,null,null,"FIN201","Risk Management & Insurance"]
[null,null,null,null,null,null,null,null,null,null,null,null,null,null,null,null,null,null,null,null,null,"FIN202","Superannuation & Retirement"]
[null,null,null,null,null,null,null,null,null,null,null,null,null,null,null,null,null,null,null,null,null,"FIN301","Developing the Financial Plan"]
[null,null,null,null,null,null,null,null,null,null,null,null,null,null,null,null,null,null,null,null,null,"FIN302","Superannuation and Retirement"]
[null,null,null,null,null,null,null,null,null,null,null,null,null,null,null,null,null,null,null,null,null,"FIN303","Investment Management in Financial Planning"]
[null,null,null,null,null,null,null,null,null,null,null,null,null,null,null,null,null,null,null,null,null,"FIN304","Risk Management and Insurance"]
[null,null,null,null,null,null,null,null,null,null,null,null,null,null,null,null,null,null,null,null,null,"FIN305","Developing the Financial Plan "]
[null,null,null,null,null,null,null,null,null,null,null,null,null,null,null,null,null,null,null,null,null,"GSB600","Strategic Mngmt for Prof Practice"]
[null,null,null,null,null,null,null,null,null,null,null,null,null,null,null,null,null,null,null,null,null,"GSB600","Strategic Mngmt for Prof Practice"]
[null,null,null,null,null,null,null,null,null,null,null,null,null,null,null,null,null,null,null,null,null,"GSB600","Strategic Mngmt for Prof Practice"]
[null,null,null,null,null,null,null,null,null,null,null,null,null,null,null,null,null,null,null,null,null,"GSB600","Strategic Mngmt for Prof Practice"]
[null,null,null,null,null,null,null,null,null,null,null,null,null,null,null,null,null,null,null,null,null,"GSB600","Strategic Mngmt for Prof Practice"]
[null,null,null,null,null,null,null,null,null,null,null,null,null,null,null,null,null,null,null,null,null,"GSB600","Strategic Mngmt for Prof Practice"]
[null,null,null,null,null,null,null,null,null,null,null,null,null,null,null,null,null,null,null,null,null,"GSB600","Strategic Mngmt for Prof Practice"]
[null,null,null,null,null,null,null,null,null,null,null,null,null,null,null,null,null,null,null,null,null,"GSB600","Strategic Mngmt for Prof Practice"]
[null,null,null,null,null,null,null,null,null,null,null,null,null,null,null,null,null,null,null,null,null,"GSB601","Issues Company Financial Reporting"]
[null,null,null,null,null,null,null,null,null,null,null,null,null,null,null,null,null,null,null,null,null,"GSB601","Issues Company Financial Reporting"]
[null,null,null,null,null,null,null,null,null,null,null,null,null,null,null,null,null,null,null,null,null,"GSB602","Issues in Management Accounting"]
[null,null,null,null,null,null,null,null,null,null,null,null,null,null,null,null,null,null,null,null,null,"GSB603","International Accounting"]
[null,null,null,null,null,null,null,null,null,null,null,null,null,null,null,null,null,null,null,null,null,"GSB604","Issues in Auditing and Prof Practice"]
[null,null,null,null,null,null,null,null,null,null,null,null,null,null,null,null,null,null,null,null,null,"GSB605","Security Analysis & Portfolio Mngmt"]
[null,null,null,null,null,null,null,null,null,null,null,null,null,null,null,null,null,null,null,null,null,"GSB606","Advanced Taxation Law"]
[null,null,null,null,null,null,null,null,null,null,null,null,null,null,null,null,null,null,null,null,null,"GSB607","Professional Ethics"]
[null,null,null,null,null,null,null,null,null,null,null,null,null,null,null,null,null,null,null,null,null,"GSB607","Professional Ethics"]
[null,null,null,null,null,null,null,null,null,null,null,null,null,null,null,null,null,null,null,null,null,"GSB608","Financial Planning & Wealth Management"]
[null,null,null,null,null,null,null,null,null,null,null,null,null,null,null,null,null,null,null,null,null,"GSB609","Risk Management & Insurance"]
[null,null,null,null,null,null,null,null,null,null,null,null,null,null,null,null,null,null,null,null,null,"GSB610","Superannuation & Retirement"]
[null,null,null,null,null,null,null,null,null,null,null,null,null,null,null,null,null,null,null,null,null,"GSB611","Investment Management in Financial Planning"]
[null,null,null,null,null,null,null,null,null,null,null,null,null,null,null,null,null,null,null,null,null,"GSB611","Investment Management in Financial Planning"]
[null,null,null,null,null,null,null,null,null,null,null,null,null,null,null,null,null,null,null,null,null,"GSB612","Developing the Financial Plan"]
[null,null,null,null,null,null,null,null,null,null,null,null,null,null,null,null,null,null,null,null,null,"GSB613","Financial Planning"]
[null,null,null,null,null,null,null,null,null,null,null,null,null,null,null,null,null,null,null,null,null,"GSB641","Advanced Financial Accounting"]
[null,null,null,null,null,null,null,null,null,null,null,null,null,null,null,null,null,null,null,null,null,"GSB641","Advanced Financial Accounting"]
[null,null,null,null,null,null,null,null,null,null,null,null,null,null,null,null,null,null,null,null,null,"GSB641","Advanced Financial Accounting"]
[null,null,null,null,null,null,null,null,null,null,null,null,null,null,null,null,null,null,null,null,null,"GSB641","Advanced Financial Accounting"]
[null,null,null,null,null,null,null,null,null,null,null,null,null,null,null,null,null,null,null,null,null,"GSB641","Advanced Financial Accounting"]
[null,null,null,null,null,null,null,null,null,null,null,null,null,null,null,null,null,null,null,null,null,"GSB641","Advanced Financial Accounting"]
[null,null,null,null,null,null,null,null,null,null,null,null,null,null,null,null,null,null,null,null,null,"GSB641","Advanced Financial Accounting"]
[null,null,null,null,null,null,null,null,null,null,null,null,null,null,null,null,null,null,null,null,null,"GSB642","Corporate Accounting"]
[null,null,null,null,null,null,null,null,null,null,null,null,null,null,null,null,null,null,null,null,null,"GSB642","Corporate Accounting"]
[null,null,null,null,null,null,null,null,null,null,null,null,null,null,null,null,null,null,null,null,null,"GSB642","Corporate Accounting"]
[null,null,null,null,null,null,null,null,null,null,null,null,null,null,null,null,null,null,null,null,null,"GSB642","Corporate Accounting"]
[null,null,null,null,null,null,null,null,null,null,null,null,null,null,null,null,null,null,null,null,null,"GSB642","Corporate Accounting"]
[null,null,null,null,null,null,null,null,null,null,null,null,null,null,null,null,null,null,null,null,null,"GSB642","Corporate Accounting"]
[null,null,null,null,null,null,null,null,null,null,null,null,null,null,null,null,null,null,null,null,null,"GSB642","Corporate Accounting"]
[null,null,null,null,null,null,null,null,null,null,null,null,null,null,null,null,null,null,null,null,null,"GSB642","Corporate Accounting"]
[null,null,null,null,null,null,null,null,null,null,null,null,null,null,null,null,null,null,null,null,null,"GSB644","Auditing"]
[null,null,null,null,null,null,null,null,null,null,null,null,null,null,null,null,null,null,null,null,null,"GSB644","Auditing"]
[null,null,null,null,null,null,null,null,null,null,null,null,null,null,null,null,null,null,null,null,null,"GSB644","Auditing"]
[null,null,null,null,null,null,null,null,null,null,null,null,null,null,null,null,null,null,null,null,null,"GSB644","Auditing"]
[null,null,null,null,null,null,null,null,null,null,null,null,null,null,null,null,null,null,null,null,null,"GSB644","Auditing"]
[null,null,null,null,null,null,null,null,null,null,null,null,null,null,null,null,null,null,null,null,null,"GSB644","Auditing"]
[null,null,null,null,null,null,null,null,null,null,null,null,null,null,null,null,null,null,null,null,null,"GSB644","Auditing"]
[null,null,null,null,null,null,null,null,null,null,null,null,null,null,null,null,null,null,null,null,null,"GSB644","Auditing"]
[null,null,null,null,null,null,null,null,null,null,null,null,null,null,null,null,null,null,null,null,null,"GSB656","Methods in Organising Research"]
[null,null,null,null,null,null,null,null,null,null,null,null,null,null,null,null,null,null,null,null,null,"GSB658","Analysing Organisational Data"]
[null,null,null,null,null,null,null,null,null,null,null,null,null,null,null,null,null,null,null,null,null,"GSB671","Organisational Resource Management"]
[null,null,null,null,null,null,null,null,null,null,null,null,null,null,null,null,null,null,null,null,null,"GSB680","Local Government"]
[null,null,null,null,null,null,null,null,null,null,null,null,null,null,null,null,null,null,null,null,null,"GSB691","Mngmt of International Org's"]
[null,null,null,null,null,null,null,null,null,null,null,null,null,null,null,null,null,null,null,null,null,"GSB691","Mngmt of International Org's"]
[null,null,null,null,null,null,null,null,null,null,null,null,null,null,null,null,null,null,null,null,null,"GSB692","International Finance"]
[null,null,null,null,null,null,null,null,null,null,null,null,null,null,null,null,null,null,null,null,null,"GSB701","Introductory Accounting"]
[null,null,null,null,null,null,null,null,null,null,null,null,null,null,null,null,null,null,null,null,null,"GSB701","Introductory Accounting"]
[null,null,null,null,null,null,null,null,null,null,null,null,null,null,null,null,null,null,null,null,null,"GSB701","Introductory Accounting"]
[null,null,null,null,null,null,null,null,null,null,null,null,null,null,null,null,null,null,null,null,null,"GSB701","Introductory Accounting"]
[null,null,null,null,null,null,null,null,null,null,null,null,null,null,null,null,null,null,null,null,null,"GSB701","Introductory Accounting"]
[null,null,null,null,null,null,null,null,null,null,null,null,null,null,null,null,null,null,null,null,null,"GSB701","Introductory Accounting"]
[null,null,null,null,null,null,null,null,null,null,null,null,null,null,null,null,null,null,null,null,null,"GSB701","Introductory Accounting"]
[null,null,null,null,null,null,null,null,null,null,null,null,null,null,null,null,null,null,null,null,null,"GSB701","Introductory Accounting"]
[null,null,null,null,null,null,null,null,null,null,null,null,null,null,null,null,null,null,null,null,null,"GSB702","Fund Accting & Finance for Managers"]
[null,null,null,null,null,null,null,null,null,null,null,null,null,null,null,null,null,null,null,null,null,"GSB702","Fund Accting & Finance for Managers"]
[null,null,null,null,null,null,null,null,null,null,null,null,null,null,null,null,null,null,null,null,null,"GSB703","Advanced Management Accounting"]
[null,null,null,null,null,null,null,null,null,null,null,null,null,null,null,null,null,null,null,null,null,"GSB703","Advanced Management Accounting"]
[null,null,null,null,null,null,null,null,null,null,null,null,null,null,null,null,null,null,null,null,null,"GSB703","Advanced Management Accounting"]
[null,null,null,null,null,null,null,null,null,null,null,null,null,null,null,null,null,null,null,null,null,"GSB703","Advanced Management Accounting"]
[null,null,null,null,null,null,null,null,null,null,null,null,null,null,null,null,null,null,null,null,null,"GSB703","Advanced Management Accounting"]
[null,null,null,null,null,null,null,null,null,null,null,null,null,null,null,null,null,null,null,null,null,"GSB703","Advanced Management Accounting"]
[null,null,null,null,null,null,null,null,null,null,null,null,null,null,null,null,null,null,null,null,null,"GSB703","Advanced Management Accounting"]
[null,null,null,null,null,null,null,null,null,null,null,null,null,null,null,null,null,null,null,null,null,"GSB711","Managerial Finance"]
[null,null,null,null,null,null,null,null,null,null,null,null,null,null,null,null,null,null,null,null,null,"GSB711","Managerial Finance"]
[null,null,null,null,null,null,null,null,null,null,null,null,null,null,null,null,null,null,null,null,null,"GSB711","Managerial Finance"]
[null,null,null,null,null,null,null,null,null,null,null,null,null,null,null,null,null,null,null,null,null,"GSB711","Managerial Finance"]
[null,null,null,null,null,null,null,null,null,null,null,null,null,null,null,null,null,null,null,null,null,"GSB711","Managerial Finance"]
[null,null,null,null,null,null,null,null,null,null,null,null,null,null,null,null,null,null,null,null,null,"GSB711","Managerial Finance"]
[null,null,null,null,null,null,null,null,null,null,null,null,null,null,null,null,null,null,null,null,null,"GSB711","Managerial Finance"]
[null,null,null,null,null,null,null,null,null,null,null,null,null,null,null,null,null,null,null,null,null,"GSB714","Communication Management"]
[null,null,null,null,null,null,null,null,null,null,null,null,null,null,null,null,null,null,null,null,null,"GSB714","Communication Management"]
[null,null,null,null,null,null,null,null,null,null,null,null,null,null,null,null,null,null,null,null,null,"GSB717","Entrepreneurship and Small Business"]
[null,null,null,null,null,null,null,null,null,null,null,null,null,null,null,null,null,null,null,null,null,"GSB717","Entrepreneurship and Small Business"]
[null,null,null,null,null,null,null,null,null,null,null,null,null,null,null,null,null,null,null,null,null,"GSB721","Processes of Management"]
[null,null,null,null,null,null,null,null,null,null,null,null,null,null,null,null,null,null,null,null,null,"GSB721","Processes of Management"]
[null,null,null,null,null,null,null,null,null,null,null,null,null,null,null,null,null,null,null,null,null,"GSB722","Gender Issues in Management"]
[null,null,null,null,null,null,null,null,null,null,null,null,null,null,null,null,null,null,null,null,null,"GSB723","Asian Business Management"]
[null,null,null,null,null,null,null,null,null,null,null,null,null,null,null,null,null,null,null,null,null,"GSB724","Project Management"]
[null,null,null,null,null,null,null,null,null,null,null,null,null,null,null,null,null,null,null,null,null,"GSB724","Project Management"]
[null,null,null,null,null,null,null,null,null,null,null,null,null,null,null,null,null,null,null,null,null,"GSB724","Project Management"]
[null,null,null,null,null,null,null,null,null,null,null,null,null,null,null,null,null,null,null,null,null,"GSB724","Project Management"]
[null,null,null,null,null,null,null,null,null,null,null,null,null,null,null,null,null,null,null,null,null,"GSB724","Project Management"]
[null,null,null,null,null,null,null,null,null,null,null,null,null,null,null,null,null,null,null,null,null,"GSB724","Project Management"]
[null,null,null,null,null,null,null,null,null,null,null,null,null,null,null,null,null,null,null,null,null,"GSB724","Project Management"]
[null,null,null,null,null,null,null,null,null,null,null,null,null,null,null,null,null,null,null,null,null,"GSB724","Strategic Management"]
[null,null,null,null,null,null,null,null,null,null,null,null,null,null,null,null,null,null,null,null,null,"GSB725","Strategic Management"]
[null,null,null,null,null,null,null,null,null,null,null,null,null,null,null,null,null,null,null,null,null,"GSB726","International Business"]
[null,null,null,null,null,null,null,null,null,null,null,null,null,null,null,null,null,null,null,null,null,"GSB726","International Business"]
[null,null,null,null,null,null,null,null,null,null,null,null,null,null,null,null,null,null,null,null,null,"GSB726","International Business"]
[null,null,null,null,null,null,null,null,null,null,null,null,null,null,null,null,null,null,null,null,null,"GSB726","International Business"]
[null,null,null,null,null,null,null,null,null,null,null,null,null,null,null,null,null,null,null,null,null,"GSB726","International Business"]
[null,null,null,null,null,null,null,null,null,null,null,null,null,null,null,null,null,null,null,null,null,"GSB726","International Business"]
[null,null,null,null,null,null,null,null,null,null,null,null,null,null,null,null,null,null,null,null,null,"GSB726","International Business"]
[null,null,null,null,null,null,null,null,null,null,null,null,null,null,null,null,null,null,null,null,null,"GSB731","Marketing Management"]
[null,null,null,null,null,null,null,null,null,null,null,null,null,null,null,null,null,null,null,null,null,"GSB731","Marketing Management"]
[null,null,null,null,null,null,null,null,null,null,null,null,null,null,null,null,null,null,null,null,null,"GSB731","Marketing Management"]
[null,null,null,null,null,null,null,null,null,null,null,null,null,null,null,null,null,null,null,null,null,"GSB731","Marketing Management"]
[null,null,null,null,null,null,null,null,null,null,null,null,null,null,null,null,null,null,null,null,null,"GSB731","Marketing Management"]
[null,null,null,null,null,null,null,null,null,null,null,null,null,null,null,null,null,null,null,null,null,"GSB731","Marketing Management"]
[null,null,null,null,null,null,null,null,null,null,null,null,null,null,null,null,null,null,null,null,null,"GSB731","Marketing Management"]
[null,null,null,null,null,null,null,null,null,null,null,null,null,null,null,null,null,null,null,null,null,"GSB732","Consumer Behaviour"]
[null,null,null,null,null,null,null,null,null,null,null,null,null,null,null,null,null,null,null,null,null,"GSB734","Management of Change"]
[null,null,null,null,null,null,null,null,null,null,null,null,null,null,null,null,null,null,null,null,null,"GSB736","International Marketing"]
[null,null,null,null,null,null,null,null,null,null,null,null,null,null,null,null,null,null,null,null,null,"GSB737","Services Marketing"]
[null,null,null,null,null,null,null,null,null,null,null,null,null,null,null,null,null,null,null,null,null,"GSB737","Services Marketing"]
[null,null,null,null,null,null,null,null,null,null,null,null,null,null,null,null,null,null,null,null,null,"GSB738","Organisational Behaviour"]
[null,null,null,null,null,null,null,null,null,null,null,null,null,null,null,null,null,null,null,null,null,"GSB739","Human Resource Management"]
[null,null,null,null,null,null,null,null,null,null,null,null,null,null,null,null,null,null,null,null,null,"GSB739","Human Resource Management"]
[null,null,null,null,null,null,null,null,null,null,null,null,null,null,null,null,null,null,null,null,null,"GSB740","Managerial Think & Decision Making"]
[null,null,null,null,null,null,null,null,null,null,null,null,null,null,null,null,null,null,null,null,null,"GSB741","Management Information Systems"]
[null,null,null,null,null,null,null,null,null,null,null,null,null,null,null,null,null,null,null,null,null,"GSB741","Management Information Systems"]
[null,null,null,null,null,null,null,null,null,null,null,null,null,null,null,null,null,null,null,null,null,"GSB741","Management Information Systems"]
[null,null,null,null,null,null,null,null,null,null,null,null,null,null,null,null,null,null,null,null,null,"GSB741","Management Information Systems"]
[null,null,null,null,null,null,null,null,null,null,null,null,null,null,null,null,null,null,null,null,null,"GSB741","Management Information Systems"]
[null,null,null,null,null,null,null,null,null,null,null,null,null,null,null,null,null,null,null,null,null,"GSB741","Management Information Systems"]
[null,null,null,null,null,null,null,null,null,null,null,null,null,null,null,null,null,null,null,null,null,"GSB741","Management Information Systems"]
[null,null,null,null,null,null,null,null,null,null,null,null,null,null,null,null,null,null,null,null,null,"GSB742","Introduction to Management Science"]
[null,null,null,null,null,null,null,null,null,null,null,null,null,null,null,null,null,null,null,null,null,"GSB745","Executive Leadership"]
[null,null,null,null,null,null,null,null,null,null,null,null,null,null,null,null,null,null,null,null,null,"GSB751","Business Ethics, CSR & Sustainability"]
[null,null,null,null,null,null,null,null,null,null,null,null,null,null,null,null,null,null,null,null,null,"GSB752","The Learning Organisation"]
[null,null,null,null,null,null,null,null,null,null,null,null,null,null,null,null,null,null,null,null,null,"GSB753","Workforce Planning & HR Development"]
[null,null,null,null,null,null,null,null,null,null,null,null,null,null,null,null,null,null,null,null,null,"GSB753","Workforce Planning & HR Development"]
[null,null,null,null,null,null,null,null,null,null,null,null,null,null,null,null,null,null,null,null,null,"MM105","Organisational Behaviour"]
[null,null,null,null,null,null,null,null,null,null,null,null,null,null,null,null,null,null,null,null,null,"MM105","Organisational Behaviour"]
[null,null,null,null,null,null,null,null,null,null,null,null,null,null,null,null,null,null,null,null,null,"MM105","Organisational Behaviour"]
[null,null,null,null,null,null,null,null,null,null,null,null,null,null,null,null,null,null,null,null,null,"MM110","Introduction to Marketing"]
[null,null,null,null,null,null,null,null,null,null,null,null,null,null,null,null,null,null,null,null,null,"MM110","Introduction to Marketing"]
[null,null,null,null,null,null,null,null,null,null,null,null,null,null,null,null,null,null,null,null,null,"MM110","Introduction to Marketing"]
[null,null,null,null,null,null,null,null,null,null,null,null,null,null,null,null,null,null,null,null,null,"MM200","Managing People and Organisations"]
[null,null,null,null,null,null,null,null,null,null,null,null,null,null,null,null,null,null,null,null,null,"MM200","Managing People and Organisations"]
[null,null,null,null,null,null,null,null,null,null,null,null,null,null,null,null,null,null,null,null,null,"MM202","International Business"]
[null,null,null,null,null,null,null,null,null,null,null,null,null,null,null,null,null,null,null,null,null,"MM221","Human Resource Management"]
[null,null,null,null,null,null,null,null,null,null,null,null,null,null,null,null,null,null,null,null,null,"MM300","Strategic Planning and Management"]
[null,null,null,null,null,null,null,null,null,null,null,null,null,null,null,null,null,null,null,null,null,"MM311","Customer Behaviour"]
[null,null,null,null,null,null,null,null,null,null,null,null,null,null,null,null,null,null,null,null,null,"MM313","Marketing Communications"]
[null,null,null,null,null,null,null,null,null,null,null,null,null,null,null,null,null,null,null,null,null,"MM314","Services Marketing"]
[null,null,null,null,null,null,null,null,null,null,null,null,null,null,null,null,null,null,null,null,null,"MM316","Marketing Strategy and Management"]
[null,null,null,null,null,null,null,null,null,null,null,null,null,null,null,null,null,null,null,null,null,"MM320","Organisational Development & Change"]
[null,null,null,null,null,null,null,null,null,null,null,null,null,null,null,null,null,null,null,null,null,"MM320","Organisational Development & Change"]
[null,null,null,null,null,null,null,null,null,null,null,null,null,null,null,null,null,null,null,null,null,"MM322","Managing Ethics in Organisations"]
[null,null,null,null,null,null,null,null,null,null,null,null,null,null,null,null,null,null,null,null,null,"MM324","Organisational Leadership and Performance"]
[null,null,null,null,null,null,null,null,null,null,null,null,null,null,null,null,null,null,null,null,null,"MM333","Human Planning & Management"]
[null,null,null,null,null,null,null,null,null,null,null,null,null,null,null,null,null,null,null,null,null,"MM402","International Business"]
[null,null,null,null,null,null,null,null,null,null,null,null,null,null,null,null,null,null,null,null,null,"MM403","Strategic Planning and Management"]
[null,null,null,null,null,null,null,null,null,null,null,null,null,null,null,null,null,null,null,null,null,"MM403","Strategic Planning and Management"]
[null,null,null,null,null,null,null,null,null,null,null,null,null,null,null,null,null,null,null,null,null,"MM405","Organisational Behaviour"]
[null,null,null,null,null,null,null,null,null,null,null,null,null,null,null,null,null,null,null,null,null,"MM424","Project Management"]
[null,null,null,null,null,null,null,null,null,null,null,null,null,null,null,null,null,null,null,null,null,"MM431","Marketing Management"]
[null,null,null,null,null,null,null,null,null,null,null,null,null,null,null,null,null,null,null,null,null,"MM439","Strategic Human Resource Management"]
[null,null,null,null,null,null,null,null,null,null,null,null,null,null,null,null,null,null,null,null,null,"MM453","Strategic Human Resource Management"]
[null,null,null,null,null,null,null,null,null,null,null,null,null,null,null,null,null,null,null,null,null,"MM453","Workforce Planning & HR Development"]
[null,null,null,null,null,null,null,null,null,null,null,null,null,null,null,null,null,null,null,null,null,"MM467","Professional Ethics"]
[null,null,null,null,null,null,null,null,null,null,null,null,null,null,null,null,null,null,null,null,null,"MM467","Professional Ethics"]
[null,null,null,null,null,null,null,null,null,null,null,null,null,null,null,null,null,null,null,null,null,"MM502","International Business"]
[null,null,null,null,null,null,null,null,null,null,null,null,null,null,null,null,null,null,null,null,null,"MM511","Consumer Behaviour"]
[null,null,null,null,null,null,null,null,null,null,null,null,null,null,null,null,null,null,null,null,null,"MM513","Integrated Marketing Communications"]
[null,null,null,null,null,null,null,null,null,null,null,null,null,null,null,null,null,null,null,null,null,"MM514","Services Marketing"]
[null,null,null,null,null,null,null,null,null,null,null,null,null,null,null,null,null,null,null,null,null,"MM521","Processes of Management"]
[null,null,null,null,null,null,null,null,null,null,null,null,null,null,null,null,null,null,null,null,null,"MM523","Strategic Management"]
[null,null,null,null,null,null,null,null,null,null,null,null,null,null,null,null,null,null,null,null,null,"MM525","Strategic Management Project"]
[null,null,null,null,null,null,null,null,null,null,null,null,null,null,null,null,null,null,null,null,null,"MM528","Asian Business Management"]
[null,null,null,null,null,null,null,null,null,null,null,null,null,null,null,null,null,null,null,null,null,"MM540","Managerial Thinking & Decision Making"]
[null,null,null,null,null,null,null,null,null,null,null,null,null,null,null,null,null,null,null,null,null,"MM545","Organisational Leadership: Theory & Practice"]
[null,null,null,null,null,null,null,null,null,null,null,null,null,null,null,null,null,null,null,null,null,"MM551","Business Ethics, CSR & Sustainability"]
[null,null,null,null,null,null,null,null,null,null,null,null,null,null,null,null,null,null,null,null,null,"MM552","The Learning Organisation"]
[null,null,null,null,null,null,null,null,null,null,null,null,null,null,null,null,null,null,null,null,null,"MM573","Management of Change"]
[null,null,null,null,null,null,null,null,null,null,null,null,null,null,null,null,null,null,null,null,null,"MM580","Local Government"]
[null,null,null,null,null,null,null,null,null,null,null,null,null,null,null,null,null,null,null,null,null,"MM591","Managing Across Cultures"]
[null,null,null,null,null,null,null,null,null,null,null,null,null,null,null,null,null,null,null,null,null,"OSBS400","Overseas Business Study"]
[null,null,null,null,null,null,null,null,null,null,null,null,null,null,null,null,null,null,null,null,null,"OSBS400","Overseas Business Study"]
[null,null,null,null,null,null,null,null,null,null,null,null,null,null,null,null,null,null,null,null,null,"OSWP300","Overseas Work Placement"]
[null,null,null,null,null,null,null,null,null,null,null,null,null,null,null,null,null,null,null,null,null,"OSWP300","Overseas Work Placement"]
[null,null,null,null,null,null,null,null,null,null,null,null,null,null,null,null,null,null,null,null,null,"PDAL699A","Thesis at Masters (Hons) level"]
[null,null,null,null,null,null,null,null,null,null,null,null,null,null,null,null,null,null,null,null,null,"PDAL699A","Thesis at Masters (Hons) level"]
[null,null,null,null,null,null,null,null,null,null,null,null,null,null,null,null,null,null,null,null,null,"PDAS311","Globalisation, Social Issues and Public Policy"]
[null,null,null,null,null,null,null,null,null,null,null,null,null,null,null,null,null,null,null,null,null,"PDAS313","Human Resource Planning and Development"]
[null,null,null,null,null,null,null,null,null,null,null,null,null,null,null,null,null,null,null,null,null,"PDAS403","Admin Leadership: Special Study"]
[null,null,null,null,null,null,null,null,null,null,null,null,null,null,null,null,null,null,null,null,null,"PDAS403","Admin Leadership: Special Study"]
[null,null,null,null,null,null,null,null,null,null,null,null,null,null,null,null,null,null,null,null,null,"PDAS403","Admin Leadership: Special Study"]
[null,null,null,null,null,null,null,null,null,null,null,null,null,null,null,null,null,null,null,null,null,"PROF500","Communication for Professionals"]
[null,null,null,null,null,null,null,null,null,null,null,null,null,null,null,null,null,null,null,null,null,"PROF500","Communication for Professionals"]
[null,null,null,null,null,null,null,null,null,null,null,null,null,null,null,null,null,null,null,null,null,"PROF697","Harnessing Capabilities"]
[null,null,null,null,null,null,null,null,null,null,null,null,null,null,null,null,null,null,null,null,null,"PROF698","Input, Feedback & Impact Gathering Evidence"]
[null,null,null,null,null,null,null,null,null,null,null,null,null,null,null,null,null,null,null,null,null,"PROF795","Understanding the Deep Context Work"]
[null,null,null,null,null,null,null,null,null,null,null,null,null,null,null,null,null,null,null,null,null,"PROF795","Understanding the Deep Context Work"]
[null,null,null,null,null,null,null,null,null,null,null,null,null,null,null,null,null,null,null,null,null,"PROF795","Understanding the Deep Context Work"]
[null,null,null,null,null,null,null,null,null,null,null,null,null,null,null,null,null,null,null,null,null,"PROF796","Energising adoption and change"]
[null,null,null,null,null,null,null,null,null,null,null,null,null,null,null,null,null,null,null,null,null,"PROF797","Harnessing Capabilities"]
[null,null,null,null,null,null,null,null,null,null,null,null,null,null,null,null,null,null,null,null,null,"PROF798","Input, Feedback and Impact: Gathering Evidence"]
[null,null,null,null,null,null,null,null,null,null,null,null,null,null,null,null,null,null,null,null,null,"PROF799","Professional Doctorate Innovation Portfolio"]
[null,null,null,null,null,null,null,null,null,null,null,null,null,null,null,null,null,null,null,null,null,"PROF799","Professional Doctorate Innovation Portfolio"]
[null,null,null,null,null,null,null,null,null,null,null,null,null,null,null,null,null,null,null,null,null,"PROF799","Professional Doctorate Innovation Portfolio"]
[null,null,null,null,null,null,null,null,null,null,null,null,null,null,null,null,null,null,null,null,null,"QM161","Business Statistics 1"]
[null,null,null,null,null,null,null,null,null,null,null,null,null,null,null,null,null,null,null,null,null,"QM161","Business Statistics 1"]
[null,null,null,null,null,null,null,null,null,null,null,null,null,null,null,null,null,null,null,null,null,"QM161","Business Statistics 1"]
[null,null,null,null,null,null,null,null,null,null,null,null,null,null,null,null,null,null,null,null,null,"QM162","Business Statistics 2"]
[null,null,null,null,null,null,null,null,null,null,null,null,null,null,null,null,null,null,null,null,null,"QM262","Business Statistics 2"]
[null,null,null,null,null,null,null,null,null,null,null,null,null,null,null,null,null,null,null,null,null,"QM264","Intro to Business Forecasting"]
[null,null,null,null,null,null,null,null,null,null,null,null,null,null,null,null,null,null,null,null,null,"QM265","Business Decision Making"]
[null,null,null,null,null,null,null,null,null,null,null,null,null,null,null,null,null,null,null,null,null,"QM365","Business Decision Making"]
[null,null,null,null,null,null,null,null,null,null,null,null,null,null,null,null,null,null,null,null,null,"QM367","Survey Methods for Bus & Econ"]
[null,null,null,null,null,null,null,null,null,null,null,null,null,null,null,null,null,null,null,null,null,"QM461","Quantitative Techniques for Mngmt"]
[null,null,null,null,null,null,null,null,null,null,null,null,null,null,null,null,null,null,null,null,null,"QM461","Quantitative Techniques for Mngmt"]
[null,null,null,null,null,null,null,null,null,null,null,null,null,null,null,null,null,null,null,null,null,"RSNR120","Sustaining Our Rural Environment II"]
[null,null,null,null,null,null,null,null,null,null,null,null,null,null,null,null,null,null,null,null,null,"RE51001"]
[null,null,null,null,null,null,null,null,null,null,null,null,null,null,null,null,null,null,null,null,null,"RE51001"]
[null,null,null,null,null,null,null,null,null,null,null,null,null,null,null,null,null,null,null,null,null,"RE51002"]
[null,null,null,null,null,null,null,null,null,null,null,null,null,null,null,null,null,null,null,null,null,"RE51002"]
[null,null,null,null,null,null,null,null,null,null,null,null,null,null,null,null,null,null,null,null,null,"RE51004"]
[null,null,null,null,null,null,null,null,null,null,null,null,null,null,null,null,null,null,null,null,null,"RE51004"]
[null,null,null,null,null,null,null,null,null,null,null,null,null,null,null,null,null,null,null,null,null,"WORK300-51","Professional Skills Development"]
[null,null,null,null,null,null,null,null,null,null,null,null,null,null,null,null,null,null,null,null,null,"WORK300-51","Professional Skills Development"]
[null,null,null,null,null,null,null,null,null,null,null,null,null,null,null,null,null,null,null,null,null,"WORK500","Professional Skills Development"]

{"sheet":"For your comments","index":2,"n_rows":3,"n_cols":19,"rows_kept":3,"cut":false,"hidden":false,"merged":[]}
["Make comments or explanations here",null,null,null,null,null,null,null,null,null,null,null,null,null,null,null,null,null,"TRI-1"]
["Please justify/explain anything unusual here",null,null,null,null,null,null,null,null,null,null,null,null,null,null,null,null,null,"TRI-2"]
[null,null,null,null,null,null,null,null,null,null,null,null,null,null,null,null,null,null,"TRI-3"]